Workbook

Sheet Datos (GENERALES)
B2: CÓDIGO DE INSPECCIÓN
A3: HERRAMIENTA DE PREDIAGNÓSTICO DE ESTADO DE AISLAMIENTO DE SUPERFICIES CALIENTES EN INSTALACIONES INDUSTRIALES
A5: DATOS GENERALES
A7: PROPIEDAD DE LA INSTALACIÓN
A9: DENOMINACIÓN DE LA INSTALACIÓN
A11: DIRECCIÓN POSTAL
A13: MUNICIPIO
A15: CÓDIGO POSTAL
A17: PROVINCIA
A19: COMUNIDAD AUTÓNOMA | B19: =IFERROR((VLOOKUP(B17,'Hoja de programación'!$L$2:$M$54,2,FALSE))," ") -> 
A21: DATOS DEL INSPECTOR
A23: NOMBRE Y APELLIDOS
A25: NIF
A27: RAZÓN SOCIAL
A29: CIF
A31: DIRECCIÓN POSTAL
A33: MUNICIPIO
A35: CÓDIGO POSTAL
A37: PROVINCIA
A39: COMUNIDAD AUTÓNOMA | B39: =IFERROR((VLOOKUP(B37,'Hoja de programación'!$L$2:$M$54,2,FALSE))," ") -> 
A41: e-mail
A43: DATOS DE LA INSPECCIÓN
A45: FECHA
A47: REPRESENTANTE DE LA PROPIEDAD
A49: ALCANCE DEL ESTUDIO
A51: A) Tuberías (hasta 1000 mm de diámetro) o sistemas de tuberías
A55: B) Superficies planas (desde 1000 mm de diámetro) y equipos
A59: DATOS DE LA INSTALACIÓN
A61: Los equipos y tuberías a analizar aparecen en los listados siguientes
A63: A) Tuberías (hasta 1000 mm de diámetro) o sistemas de tuberías
A65: Descripción de tuberías/sistemas de tuberías objeto de la inspección.
A67: Item | B67: Descripción | C67: Rango de Temperaturas | D67: Material de aislamiento | E67: Espesor/es de aislamiento | F67: Material de recubrimiento | G67: Espesor de recubrimiento
A68: A1
A69: A2
A70: A3
A71: A4
A72: A5
A73: A6
A74: A7
A75: A8
A76: A9
A77: A10
A80: B) Superficies planas (desde 1000 mm de diámetro) y equipos
A82: Descripción de superficies planas objeto de la inspección.
A84: Item | B84: Descripción | C84: Rango de Temperaturas | D84: Material de aislamiento | E84: Espesor/es de aislamiento | F84: Material de recubrimiento | G84: Espesor de recubrimiento
A85: B1
A86: B2
A87: B3
A88: B4
A89: B5
A90: B6
A91: B7
A92: B8
A93: B9
A94: B10
F95: e
A97: C) Condiciones Ambientales de la instalación (sólo para el cálculo de pérdidas)
A99: Instalaciones exteriores
A101: Temperatura ambiental media del lugar (Promedio anual TA(ºC) de Guia Técnica Condiciones Clímaticas IDAE): | C101: ºC
A104: Instalaciones interiores
A106: Temperatura ambiental media del interior/temperatura medida el día de la inspección : | C106: ºC
A109: Ante cualquier duda relativa al uso de esta herramienta, puede contactar con: consultas@andimai.es
A110: Para imprimir el informe aditivo completo, pulse a la vez las teclas "Control", "Mayúsculas" y "P" (Ctrl+Mayus+P)
A111: Versión 1.2.0

Sheet Datos (SUP AISLADA)
A1: ANEXO 1: SUPERFICIE AISLADA
A3: A) Superficies de tuberías (hasta 1000 mm de diámetro)
A5: Tª superficial de la instalación (ºC) | B5: Total m² tubería | C5: Total m² aislados para Conservación de Calor (CC) | D5: Total m² aislados para Protección Personal (PP) | F5: % de superficie aislada para Conservación de Calor (CC) | G5: % de superficie aislada para protección personal (PP) | H5: % de superficie aislada (CC+PP) | I5: % de superficie sin aislamiento | K5: Temperatura media de cada tramo (ºC) | L5: TI Temperatura Incremental media para cálculo de CISA T(ºC)-60ºC | M5: CISA60 (m²xTI)/1000
A6: 60<X≤100 | F6: =IF(B6<>0,C6/B6,0) -> 0 | G6: =IF(B6<>0,D6/B6,0) -> 0 | H6: =F6+G6 -> 0 | I6: =IF(B6<>0,1-F6-G6,0) -> 0 | K6: 80 | L6: =K6-60 -> 20 | M6: =ROUND(L6*B6/1000,0) -> 0
A7: 100<X≤200 | F7: =IF(B7<>0,C7/B7,0) -> 0 | G7: =IF(B7<>0,D7/B7,0) -> 0 | H7: =F7+G7 -> 0 | I7: =IF(B7<>0,1-F7-G7,0) -> 0 | K7: 150 | L7: =K7-60 -> 90 | M7: =ROUND(L7*B7/1000,0) -> 0
A8: 200<X≤300 | F8: =IF(B8<>0,C8/B8,0) -> 0 | G8: =IF(B8<>0,D8/B8,0) -> 0 | H8: 0 | I8: 0 | K8: 250 | L8: 190 | M8: 0
A9: 300<X≤400 | F9: 0 | G9: 0 | H9: 0 | I9: 0 | K9: 350 | L9: 290 | M9: 0
A10: 400<X≤500 | F10: 0 | G10: 0 | H10: 0 | I10: 0 | K10: 450 | L10: 390 | M10: 0
A11: 500<X≤600 | F11: 0 | G11: 0 | H11: 0 | I11: 0 | K11: 550 | L11: 490 | M11: 0
A12: 600<X≤650 | F12: 0 | G12: 0 | H12: 0 | I12: 0 | K12: 625 | L12: 565 | M12: 0
A13: TOTAL | B13: =SUM(B6:B12) -> 0 | C13: =SUM(C6:C12) -> 0 | D13: =SUM(D6:D12) -> 0 | F13: 0 | G13: 0 | H13: =F13+G13 -> 0 | I13: 0 | L13: TOTAL: | M13: =SUM(M6:M12) -> 0
A15: B) Superficies planas (desde 1000 mm de diámetro) y equipos
A17: Tª superficial de la instalación (ºC) | B17: Total m² equipo | C17: Total m² aislados para Conservación de Calor (CC) | D17: Total m² aislados para Protección Personal (PP) | F17: % de superficie aislada para Conservación de Calor (CC) | G17: % de superficie aislada para protección personal (PP) | H17: % de superficie aislada (CC+PP) | I17: % de superficie sin aislamiento | K17: Temperatura media de cada tramo (ºC) | L17: TI Temperatura Incremental media para cálculo de CISA T(ºC)-60ºC | M17: CISA60 (m²xTI)/1000
A18: 60<X≤100 | F18: =IF(B18<>0,C18/B18,0) -> 0 | G18: =IF(B18<>0,D18/B18,0) -> 0 | H18: =F18+G18 -> 0 | I18: =IF(B18<>0,1-F18-G18,0) -> 0 | K18: 80 | L18: =K18-60 -> 20 | M18: =ROUND(L18*B18/1000,0) -> 0
A19: 100<X≤200 | F19: 0 | G19: 0 | H19: =F19+G19 -> 0 | I19: =IF(B19<>0,1-F19-G19,0) -> 0 | K19: 150 | L19: =K19-60 -> 90 | M19: 0
A20: 200<X≤300 | F20: 0 | G20: 0 | H20: 0 | I20: 0 | K20: 250 | L20: 190 | M20: 0
A21: 300<X≤400 | F21: 0 | G21: 0 | H21: 0 | I21: 0 | K21: 350 | L21: 290 | M21: 0
A22: 400<X≤500 | F22: 0 | G22: 0 | H22: 0 | I22: 0 | K22: 450 | L22: 390 | M22: 0
A23: 500<X≤600 | F23: 0 | G23: 0 | H23: 0 | I23: 0 | K23: 550 | L23: 490 | M23: 0
A24: 600<X≤650 | F24: 0 | G24: 0 | H24: 0 | I24: 0 | K24: 625 | L24: 565 | M24: 0
A25: TOTAL | B25: =SUM(B18:B24) -> 0 | C25: =SUM(C18:C24) -> 0 | D25: =SUM(D18:D24) -> 0 | F25: 0 | G25: 0 | H25: =F25+G25 -> 0 | I25: =IF(B25<>0,1-F25-G25,0) -> 0 | L25: TOTAL: | M25: =SUM(M18:M24) -> 0
A27: C) Total de superfices calientes en la instalación (A)+(B)
A29: Tª superficial de la instalación (ºC) | B29: Total m² | C29: Total m² aislados para Conservación de Calor (CC) | D29: Total m² aislados para Protección Personal (PP) | F29: % de superficie aislada para Conservación de Calor (CC) | G29: % de superficie aislada para protección personal (PP) | H29: % de superficie aislada (CC+PP) | I29: % de superficie sin aislamiento | L29: CISA60 (m²xTI)/1000 | M29: % REPARTO CISA60
A30: TOTAL SUPERFICIES CALIENTES TUBERÍA | B30: =B13 -> 0 | C30: =C13 -> 0 | D30: =D13 -> 0 | F30: =F13 -> 0 | G30: =G13 -> 0 | H30: =H13 -> 0 | I30: =I13 -> 0 | L30: =M13 -> 0 | M30: =IFERROR((ROUND(L30/L32,2)),0) -> 0
A31: TOTAL SUPERFICIES CALIENTES EQUIPOS | B31: =B25 -> 0 | C31: =C25 -> 0 | D31: =D25 -> 0 | F31: =F25 -> 0 | G31: =G25 -> 0 | H31: =H25 -> 0 | I31: =I25 -> 0 | L31: =M25 -> 0 | M31: =IFERROR((ROUND(L31/L32,2)),0) -> 0
K32: TOTAL: | L32: =SUM(L30:L31) -> 0 | M32: =SUM(M30:M31) -> 0
A33: Para imprimir el informe aditivo completo, pulse a la vez las teclas "Control", "Mayúsculas" y "P" (Ctrl+Mayus+P)

Sheet Datos (ESP AISLAMIENTO)
B1: ANEXO 2: ESPESORES DE AISLAMIENTO
B3: A) Superficies de tuberías (hasta 1000 mm de diámetro)
B5: A.1) Superficies de tuberías (hasta 1000 mm de diámetro) aisladas para Conservación de Calor
D7: Valor promedio de Perdidas Instalación actual en W/m²
C9: TABLA 2.A.1
C10: Rango de Pérdidas Cálculadas Q (W/m²) | D10: Ponderación por rangos (%) | E10: Ponderación de la instalación Estudiada (%)
B11: =E11 ->  | C11: Q≤90 | D11: 1 | E11: =IF((AND($E$7<=90,$E$7<>0)),"X"," ") -> 
B12: =E12 ->  | C12: 90<Q≤100 | D12: =D11-0.05 -> 0.95 | E12: =IF((AND($E$7>90,$E$7<=100)),"X"," ") -> 
C13: 100<Q≤120 | D13: =D12-0.05 -> 0.9 | E13: =IF((AND($E$7>100,$E$7<=120)),"X"," ") -> 
C14: 120<Q≤140 | D14: 0.85 | E14: =IF((AND($E$7>120,$E$7<=140)),"X"," ") -> 
C15: 140<Q≤160 | D15: 0.8 | E15: =IF((AND($E$7>140,$E$7<=160)),"X"," ") -> 
C16: 160<Q≤180 | D16: 0.75 | E16: =IF((AND($E$7>160,$E$7<=180)),"X"," ") -> 
C17: 180<Q≤200 | D17: 0.7 | E17: =IF((AND($E$7>180,$E$7<=200)),"X"," ") -> 
C18: 200<Q≤220 | D18: 0.65 | E18: =IF((AND($E$7>200,$E$7<=220)),"X"," ") -> 
C19: 220<Q≤240 | D19: 0.6 | E19: =IF((AND($E$7>220,$E$7<=240)),"X"," ") -> 
C20: 240<Q≤260 | D20: 0.55 | E20: =IF((AND($E$7>240,$E$7<=260)),"X"," ") -> 
C21: 260<Q≤280 | D21: 0.5 | E21: =IF((AND($E$7>260,$E$7<=280)),"X"," ") -> 
C22: 280<Q≤300 | D22: 0.45 | E22: =IF((AND($E$7>280,$E$7<=300)),"X"," ") -> 
C23: 300<Q≤320 | D23: 0.4 | E23: =IF((AND($E$7>300,$E$7<=320)),"X"," ") -> 
C24: 320<Q≤340 | D24: 0.35 | E24: =IF((AND($E$7>320,$E$7<=340)),"X"," ") -> 
C25: 340<Q≤360 | D25: 0.3 | E25: =IF((AND($E$7>340,$E$7<=360)),"X"," ") -> 
C26: 360<Q≤380 | D26: 0.25 | E26: =IF((AND($E$7>360,$E$7<=380)),"X"," ") -> 
C27: 380<Q≤400 | D27: 0.2 | E27: =IF((AND($E$7>380,$E$7<=400)),"X"," ") -> 
C28: 400<Q | D28: 0.15 | E28: =IF($E$7>400,"X"," ") -> 
B30: A.2) Superficies de tuberías (hasta 1000 mm de diámetro) aisladas para Protección Personal
D32: Valor promedio de Perdidas Instalación actual en W/m²
C34: TABLA 2.A.2
C35: Rango de Pérdidas Cálculadas Q (W/m²) | D35: Ponderación por rangos (%) | E35: Ponderación de la instalación Estudiada (%)
B36: =E36 ->  | C36: Q≤90 | D36: 1 | E36: =IF((AND($E$32<=90,$E$32<>0)),"X"," ") -> 
B37: =E37 ->  | C37: 90<Q≤100 | D37: =D36-0.05 -> 0.95 | E37: =IF((AND($E$32>90,$E$32<=100)),"X"," ") -> 
C38: 100<Q≤120 | D38: =D37-0.05 -> 0.9 | E38: =IF((AND($E$32>100,$E$32<=120)),"X"," ") -> 
C39: 120<Q≤140 | D39: 0.85 | E39: =IF((AND($E$32>120,$E$32<=140)),"X"," ") -> 
C40: 140<Q≤160 | D40: 0.8 | E40: =IF((AND($E$32>140,$E$32<=160)),"X"," ") -> 
C41: 160<Q≤180 | D41: 0.75 | E41: =IF((AND($E$32>160,$E$32<=180)),"X"," ") -> 
C42: 180<Q≤200 | D42: 0.7 | E42: =IF((AND($E$32>180,$E$32<=200)),"X"," ") -> 
C43: 200<Q≤220 | D43: 0.65 | E43: =IF((AND($E$32>200,$E$32<=220)),"X"," ") -> 
C44: 220<Q≤240 | D44: 0.6 | E44: =IF((AND($E$32>220,$E$32<=240)),"X"," ") -> 
C45: 240<Q≤260 | D45: 0.55 | E45: =IF((AND($E$32>240,$E$32<=260)),"X"," ") -> 
C46: 260<Q≤280 | D46: 0.5 | E46: =IF((AND($E$32>260,$E$32<=280)),"X"," ") -> 
C47: 280<Q≤300 | D47: 0.45 | E47: =IF((AND($E$32>280,$E$32<=300)),"X"," ") -> 
C48: 300<Q≤320 | D48: 0.4 | E48: =IF((AND($E$32>300,$E$32<=320)),"X"," ") -> 
C49: 320<Q≤340 | D49: 0.35 | E49: =IF((AND($E$32>320,$E$32<=340)),"X"," ") -> 
C50: 340<Q≤360 | D50: 0.3 | E50: =IF((AND($E$32>340,$E$32<=360)),"X"," ") -> 
C51: 360<Q≤380 | D51: 0.25 | E51: =IF((AND($E$32>360,$E$32<=380)),"X"," ") -> 
C52: 380<Q≤400 | D52: 0.2 | E52: =IF((AND($E$32>380,$E$32<=400)),"X"," ") -> 
C53: 400<Q | D53: 0.15 | E53: =IF($E$32>400,"X"," ") -> 
B55: A.3) Pérdidas promedio en Superficies de tuberías (hasta 1000 mm de diámetro)
B57: Tipo | C57: Peso CC ó PP sobre superfices aisladas (%) | D57: Valoración SUPERFICIES DE TUBERIAS | E57: Ponderación de la superficie estudiada (%)
B58: TOTAL TUBERIAS CALIENTES AISLADAS PARA CONSERVACION DE CALOR | C58: =IFERROR(('Datos (SUP AISLADA)'!F30/'Datos (SUP AISLADA)'!H30),0) -> 0 | D58: =IFERROR((VLOOKUP("X",B11:D28,3,FALSE)),0) -> 0 | E58: =D58*C58 -> 0
B59: TOTAL TUBERIAS CALIENTES AISLADAS PARA PROTECCION PERSONAL | C59: =IFERROR(('Datos (SUP AISLADA)'!G30/'Datos (SUP AISLADA)'!H30),0) -> 0 | D59: =IFERROR((VLOOKUP("X",B36:D53,3,FALSE)),0) -> 0 | E59: =D59*C59 -> 0
D60: TOTAL | E60: =SUM(E58:E59) -> 0
B62: B) Superficies planas (desde 1000 mm de diámetro) y equipos
B64: B.1) Superficies planas (desde 1000 mm de diámetro) y equipos aisladas para Conservación de Calor
D66: Valor promedio de Perdidas Instalación actual en W/m²
C68: TABLA 2.B.1
C70: Rango de Pérdidas Cálculadas Q (W/m²) | D70: Ponderación por rangos (%) | E70: Ponderación de la instalación Estudiada (%)
B71: =E71 ->  | C71: Q≤90 | D71: 1 | E71: =IF((AND($E$66<=90,$E$66<>0)),"X"," ") -> 
B72: =E72 ->  | C72: 90<Q≤100 | D72: =D71-0.05 -> 0.95 | E72: =IF((AND($E$66>90,$E$66<=100)),"X"," ") -> 
C73: 100<Q≤120 | D73: =D72-0.05 -> 0.9 | E73: =IF((AND($E$66>100,$E$66<=120)),"X"," ") -> 
C74: 120<Q≤140 | D74: 0.85 | E74: =IF((AND($E$66>120,$E$66<=140)),"X"," ") -> 
C75: 140<Q≤160 | D75: 0.8 | E75: =IF((AND($E$66>140,$E$66<=160)),"X"," ") -> 
C76: 160<Q≤180 | D76: 0.75 | E76: =IF((AND($E$66>160,$E$66<=180)),"X"," ") -> 
C77: 180<Q≤200 | D77: 0.7 | E77: =IF((AND($E$66>180,$E$66<=200)),"X"," ") -> 
C78: 200<Q≤220 | D78: 0.65 | E78: =IF((AND($E$66>200,$E$66<=220)),"X"," ") -> 
C79: 220<Q≤240 | D79: 0.6 | E79: =IF((AND($E$66>220,$E$66<=240)),"X"," ") -> 
C80: 240<Q≤260 | D80: 0.55 | E80: =IF((AND($E$66>240,$E$66<=260)),"X"," ") -> 
C81: 260<Q≤280 | D81: 0.5 | E81: =IF((AND($E$66>260,$E$66<=280)),"X"," ") -> 
C82: 280<Q≤300 | D82: 0.45 | E82: =IF((AND($E$66>280,$E$66<=300)),"X"," ") -> 
C83: 300<Q≤320 | D83: 0.4 | E83: =IF((AND($E$66>300,$E$66<=320)),"X"," ") -> 
C84: 320<Q≤340 | D84: 0.35 | E84: =IF((AND($E$66>320,$E$66<=340)),"X"," ") -> 
C85: 340<Q≤360 | D85: 0.3 | E85: =IF((AND($E$66>340,$E$66<=360)),"X"," ") -> 
C86: 360<Q≤380 | D86: 0.25 | E86: =IF((AND($E$66>360,$E$66<=380)),"X"," ") -> 
C87: 380<Q≤400 | D87: 0.2 | E87: =IF((AND($E$66>380,$E$66<=400)),"X"," ") -> 
C88: 400<Q | D88: 0.15 | E88: =IF($E$66>400,"X"," ") -> 
B90: B.2) Superficies planas (desde 1000 mm de diámetro) y equipos aisladas para Protección Personal
D92: Valor promedio de Perdidas Instalación actual en W/m²
C94: TABLA 2.B.2
C96: Rango de Pérdidas Cálculadas Q (W/m²) | D96: Ponderación por rangos (%) | E96: Ponderación de la instalación Estudiada (%)
B97: =E97 ->  | C97: Q≤90 | D97: 1 | E97: =IF((AND($E$92<=90,$E$92<>0)),"X"," ") -> 
B98: =E98 ->  | C98: 90<Q≤100 | D98: =D97-0.05 -> 0.95 | E98: =IF((AND($E$92>90,$E$92<=100)),"X"," ") -> 
C99: 100<Q≤120 | D99: =D98-0.05 -> 0.9 | E99: =IF((AND($E$92>100,$E$92<=120)),"X"," ") -> 
C100: 120<Q≤140 | D100: 0.85 | E100: =IF((AND($E$92>120,$E$92<=140)),"X"," ") -> 
C101: 140<Q≤160 | D101: 0.8 | E101: =IF((AND($E$92>140,$E$92<=160)),"X"," ") -> 
C102: 160<Q≤180 | D102: 0.75 | E102: =IF((AND($E$92>160,$E$92<=180)),"X"," ") -> 
C103: 180<Q≤200 | D103: 0.7 | E103: =IF((AND($E$92>180,$E$92<=200)),"X"," ") -> 
C104: 200<Q≤220 | D104: 0.65 | E104: =IF((AND($E$92>200,$E$92<=220)),"X"," ") -> 
C105: 220<Q≤240 | D105: 0.6 | E105: =IF((AND($E$92>220,$E$92<=240)),"X"," ") -> 
C106: 240<Q≤260 | D106: 0.55 | E106: =IF((AND($E$92>240,$E$92<=260)),"X"," ") -> 
C107: 260<Q≤280 | D107: 0.5 | E107: =IF((AND($E$92>260,$E$92<=280)),"X"," ") -> 
C108: 280<Q≤300 | D108: 0.45 | E108: =IF((AND($E$92>280,$E$92<=300)),"X"," ") -> 
C109: 300<Q≤320 | D109: 0.4 | E109: =IF((AND($E$92>300,$E$92<=320)),"X"," ") -> 
C110: 320<Q≤340 | D110: 0.35 | E110: =IF((AND($E$92>320,$E$92<=340)),"X"," ") -> 
C111: 340<Q≤360 | D111: 0.3 | E111: =IF((AND($E$92>340,$E$92<=360)),"X"," ") -> 
C112: 360<Q≤380 | D112: 0.25 | E112: =IF((AND($E$92>360,$E$92<=380)),"X"," ") -> 
C113: 380<Q≤400 | D113: 0.2 | E113: =IF((AND($E$92>380,$E$92<=400)),"X"," ") -> 
C114: 400<Q | D114: 0.15 | E114: =IF($E$92>400,"X"," ") -> 
B116: B.3) Pérdidas promedio en Superficies planas (desde 1000 mm de diámetro) y equipos
B118: Tipo | C118: Peso CC ó PP sobre superfices aisladas (%) | D118: Valoración SUPERFICIES DE TUBERIAS | E118: Ponderación de la superficie estudiada (%)
B119: TOTAL SUPERFICIES PLANAS CALIENTES AISLADAS PARA CONSERVACION DE CALOR | C119: =IFERROR(('Datos (SUP AISLADA)'!F31/'Datos (SUP AISLADA)'!H31),0) -> 0 | D119: =IFERROR((VLOOKUP("X",B71:D88,3,FALSE)),0) -> 0 | E119: =D119*C119 -> 0
B120: TOTAL SUPERFICIES PLANAS CALIENTES AISLADAS PARA PROTECCION PERSONAL | C120: =IFERROR(('Datos (SUP AISLADA)'!G31/'Datos (SUP AISLADA)'!H31),0) -> 0 | D120: =IFERROR((VLOOKUP("X",B97:D114,3,FALSE)),0) -> 0 | E120: =D120*C120 -> 0
D121: TOTAL | E121: =SUM(E119:E120) -> 0
B123: Para imprimir el informe aditivo completo, pulse a la vez las teclas "Control", "Mayúsculas" y "P" (Ctrl+Mayus+P)

Sheet Datos (PPI AISLAMIENTO)
B1: ANEXO 3: Registro de Puntos de Inspección en Aislamiento
B3: A) Registro de Puntos de Inspección de tuberías aisladas
G5: TIPO DE CONTROL
B6: Columna1 | C6: PUNTOS DE INSPECCIÓN | D6: CRITERIOS DE ACEPTACIÓN | E6: PUNTO DE LA GUIA | F6: MUESTRA INSTALACION | G6: V | H6: D | I6: P | J6: C | K6: T | L6: VALORACIÓN INSPECTOR | M6: OBSERVACIONES INSPECTOR | N6: Peso Parcial (%) de Punto de Inspección | O6: Ponderación puntos (%)
B7: Soporte del aislamiento | C7: Colocación de los distanciadores, si procede (altura y separación) | D7: Superficies horizontales: 950 mm ± 30 mm; Superficies Verticales: mínimo cada 3 metros. Según Guía | E7: 3.3.1 4.3.1 | F7: 0.05 | N7: 0.03 | O7: =ROUND($L7*$N7,3) -> 0
B8: Soporte del aislamiento | C8: Rotura de puente térmico | D8: Según Guía | E8: 3.3.1 4.3.1 | F8: 0.05 | N8: 0.03 | O8: =ROUND($L8*$N8,3) -> 0 | Q8: 0.7189013452 | R8: 0.8052293247 | S8: 0.962958689 | T8: 0.9864917099
B9: Material aislante | C9: Tipo y espesor de aislamiento instalado | D9: Corresponde con las especificaciones/ guía | E9: 3.1 4.3.2 | F9: 0.2 | N9: =0.5*(0.42-$N$10) -> 0.21 | O9: =ROUND($L9*$N9,3) -> 0 | Q9: V | R9: D | S9: P | T9: C | U9: T
B10: Material aislante | C10: Estado del aislamiento instalado | D10: Realización de: -Inspecciones visuales -Inspecciones Dimensionales -Inpecciones mediante informacion de planos -Inspecciones mediante informacion de certicados -Inspecciones mediante termografías | E10: General | F10: 0.05 | N10: =+V11 -> 0 | O10: =ROUND($L10*$N10,3) -> 0 | Q10: =+IF(G10="X",0.2,0) -> 0 | R10: =+IF(H10="X",0.22,0) -> 0 | S10: =+IF(I10="X",0.24,0) -> 0 | T10: =+IF(J10="X",0.28,0) -> 0 | U10: =+IF(K10="X",0.3,0) -> 0 | V10: =SUM(Q10:U10) -> 0
B11: Material aislante | C11: Adecuada sujección | D11: Según especificaciones | E11: 3.1 4.3.2 | F11: 0.05 | N11: =0.25*(0.42-$N$10) -> 0.105 | O11: =ROUND($L11*$N11,3) -> 0 | Q11: =+IF($K$10="x",0,IF($V$10>0.3,IF(G10="x",Q8*Q10*0.3/$V$10,0),IF(G10="x",Q10,0))) -> 0 | R11: =+IF($K$10="x",0,IF($V$10>0.3,IF(H10="x",R8*R10*0.3/$V$10,0),IF(H10="x",R10,0))) -> 0 | S11: =+IF($K$10="x",0,IF($V$10>0.3,IF(I10="x",S8*S10*0.3/$V$10,0),IF(I10="x",S10,0))) -> 0 | T11: =+IF($K$10="x",0,IF($V$10>0.3,IF(J10="x",T8*T10*0.3/$V$10,0),IF(J10="x",T10,0))) -> 0 | U11: =IF(SUM(Q11:T11)>0,0,IF(K10="x",U10,0)) -> 0 | V11: =SUM(Q11:U11) -> 0
B12: Material aislante | C12: Juntas a tope y contrapeadas (multicapa) | D12: Según especificaciones | E12: 3.1 4.3.2 | F12: 0.05 | N12: =0.25*(0.42-$N$10) -> 0.105 | O12: 0
B13: Protección metálica | C13: Tipo y espesor del recubrimiento instalado | D13: Corresponde con las especificaciones/ guía | E13: 3.2.1 4.3.3 | F13: 0.2 | N13: 0.06 | O13: 0
B14: Protección metálica | C14: Ejecución de bordones y solapes | D14: Según Guía | E14: 3.2.1 4.3.3 | F14: 0.05 | N14: 0.05 | O14: 0
B15: Protección metálica | C15: Fijación por tornillos / remaches POP | D15: Aprox. cada 250 mm. Según Guía | E15: 4.3.3 | F15: 0.05 | N15: 0.02 | O15: 0
B16: Protección metálica | C16: Superficie aislada (bridas, válvulas,..) | D16: Según especificaciones | E16: 3,1 4.3.2 | F16: 1 | N16: 0.07 | O16: 0
B17: Montaje | C17: Correcta instalación a favor de agua | D17: Según Guía | E17: 4.3.3 | F17: 0.05 | N17: 0.06 | O17: 0
B18: Montaje | C18: Correcto sellado (donde haya riesgo de entrada de agua de lluvía) | D18: Según Guía | E18: 4.3.3 | F18: 0.05 | N18: 0.06 | O18: 0
B19: Montaje | C19: Uso de tapas en finales de aislamiento (cajas desmontables, etc) | D19: Según Guía | E19: 4.11 | F19: 0.05 | N19: 0.04 | O19: 0
B20: Montaje | C20: Correcto tratamiento salidas de traceado. | D20: Según Guía | E20: 4.11 | F20: 0.05 | N20: 0.02 | O20: 0
B21: Montaje | C21: Tratamiento de puentes térmicos (tapas, instrumentos, etc) | D21: Según Guía | E21: 4.11 | F21: 0.05 | N21: 0.04 | O21: 0
B22: Acabado final | C22: No presenta golpes, ni aberturas, ni daños. | D22: Inspección general | E22: Guía | F22: 0.05 | N22: 0.1 | O22: 0
C23: • V= Visual • D= Dimensional • P= Información de Planos • C= Información de Certificados • T= Termografía | N23: TOTAL PPI | O23: =SUM($O7:$O22) -> 0
B25: B) Registro de Puntos de Inspección en Aislamiento de equipos aislados
G27: TIPO DE CONTROL
B28: Columna1 | C28: PUNTOS DE INSPECCIÓN | D28: CRITERIOS DE ACEPTACIÓN | E28: PUNTO DE LA GUIA | F28: MUESTRA INSTALACION | G28: V | H28: D | I28: P | J28: C | K28: T | L28: VALORACIÓN INSPECTOR | M28: OBSERVACIONES INSPECTOR | N28: Peso Parcial (%) de Punto de Inspección | O28: Ponderación puntos (%)
B29: Soporte del aislamiento | C29: Colocación de los distanciadores, si procede (altura y separación) | D29: Superficies horizontales: 950 mm ± 30 mm; Superficies Verticales: mínimo cada 3 metros. Según Guía | E29: 3.3.1 4.3.1 | F29: 0.05 | N29: 0.03 | O29: =ROUND($L29*$N29,3) -> 0
B30: Soporte del aislamiento | C30: Rotura de puente térmico | D30: Según Guía | E30: 3.3.1 4.3.1 | F30: 0.05 | N30: 0.03 | O30: =ROUND($L30*$N30,3) -> 0 | Q30: 0.7189013452 | R30: 0.8052293247 | S30: 0.962958689 | T30: 0.9864917099
B31: Material aislante | C31: Tipo y espesor de aislamiento instalado | D31: Corresponde con las especificaciones/ guía | E31: 3,1 4.3.2 | F31: 0.2 | N31: =0.5*(0.42-$N$32) -> 0.21 | O31: 0 | Q31: V | R31: D | S31: P | T31: C | U31: T
B32: Material aislante | C32: Estado del aislamiento instalado | D32: Realización de: -Inspecciones visuales -Inspecciones Dimensionales -Inpecciones mediante informacion de planos -Inspecciones mediante informacion de certicados -Inspecciones mediante termografías | E32: 3,1 4.3.2 | F32: 0.05 | N32: =+V33 -> 0 | O32: 0 | Q32: =+IF(G32="X",0.2,0) -> 0 | R32: =+IF(H32="X",0.22,0) -> 0 | S32: =+IF(I32="X",0.24,0) -> 0 | T32: =+IF(J32="X",0.28,0) -> 0 | U32: =+IF(K32="X",0.3,0) -> 0 | V32: =SUM(Q32:U32) -> 0
B33: Material aislante | C33: Adecuada sujección | D33: Según especificaciones | E33: 3,1 4.3.2 | F33: 0.05 | N33: =0.25*(0.42-$N$32) -> 0.105 | O33: 0 | Q33: =+IF($K$32="x",0,IF($V$32>0.3,IF(G32="x",Q30*Q32*0.3/$V$32,0),IF(G32="x",Q32,0))) -> 0 | R33: =+IF($K$32="x",0,IF($V$32>0.3,IF(H32="x",R30*R32*0.3/$V$32,0),IF(H32="x",R32,0))) -> 0 | S33: 0 | T33: 0 | U33: =IF(SUM(Q33:T33)>0,0,IF(K32="x",U32,0)) -> 0 | V33: =SUM(Q33:U33) -> 0
B34: Material aislante | C34: Juntas a tope y contrapeadas (multicapa) | D34: Según especificaciones | E34: 3,1 4.3.2 | F34: 0.05 | N34: =0.25*(0.42-$N$32) -> 0.105 | O34: 0
B35: Protección metálica | C35: Tipo y espesor del material instalado | D35: Según especificaciones/ guía | E35: 3.2.1 4.3.3 | F35: 0.2 | N35: 0.06 | O35: 0
B36: Protección metálica | C36: Ejecución de bordones y solapes | D36: Según Guía | E36: 3.2.1 4.3.3 | F36: 0.05 | N36: 0.05 | O36: 0
B37: Protección metálica | C37: Fijación por tornillos / remaches POP | D37: Aprox. cada 250 mm. Según Guía | E37: 4.3.3 | F37: 0.05 | N37: 0.02 | O37: 0
B38: Protección metálica | C38: Superficie aislada (bridas, válvulas,..) | D38: Según especificaciones | E38: 3.1 4.3.2 | F38: 1 | N38: 0.07 | O38: 0
B39: Montaje | C39: Correcta instalación a favor de agua | D39: Según Guía | E39: 4.3.3 | F39: 0.05 | N39: 0.06 | O39: 0
B40: Montaje | C40: Correcto sellado (donde haya riesgo de entrada de agua de lluvía) | D40: Según Guía | E40: 4.3.3 | F40: 0.05 | N40: 0.06 | O40: 0
B41: Montaje | C41: Uso de tapas en finales de aislamiento ( cajas desmontables, rosetas,…) | D41: Según Guía | E41: 4.11 | F41: 0.05 | N41: 0.04 | O41: 0
B42: Montaje | C42: Correcto tratamiento salidas de traceaado. | D42: Según Guía | E42: 4.11 | F42: 0.05 | N42: 0.02 | O42: 0
B43: Montaje | C43: Tratamiento de puentes térmicos (tapas, instrumentos,…) | D43: Según Guía | E43: 4.11 | F43: 0.05 | N43: 0.04 | O43: 0
B44: Acabado final | C44: No presenta golpes, ni aberturas, ni daños. | D44: Inspección general | E44: Guía | F44: 0.05 | N44: 0.1 | O44: 0
C45: • V= Visual • D= Dimensional • P= Información de Planos • C= Información de Certificados • T= Termografía | N45: TOTAL PPI | O45: =SUM($O29:$O44) -> 0
B46: Para imprimir el informe aditivo completo, pulse a la vez las teclas "Control", "Mayúsculas" y "P" (Ctrl+Mayus+P)

Sheet CALIFICACIÓN
A1: CÁLCULO DE LA CALIFICACIÓN DE LA INSTALACIÓN
A3: A) Superficies de tuberías (hasta 1000 mm de diámetro)
A5: Tuberías | B5: Nota BASE (N) | C5: Ponderación Superficies Aisladas (% 1) | D5: Ponderación Calidad de aislamiento (% 2) | E5: Nota Total Obtenida (N x %1 x %2)
A6: ANEXO 2.a): Espesores de Aislamiento | B6: 6 | C6: ='Datos (SUP AISLADA)'!H30 -> 0 | D6: ='Datos (ESP AISLAMIENTO)'!E60 -> 0 | E6: =ROUND($D6*$C6*$B6,2) -> 0
A7: ANEXO 3.a): Registros de Inspección | B7: 4 | C7: ='Datos (SUP AISLADA)'!H30 -> 0 | D7: ='Datos (PPI AISLAMIENTO)'!O23 -> 0 | E7: =ROUND($D7*$C7*$B7,2) -> 0
A8: TOTAL NOTA MÁXIMA | B8: =SUM(Tabla30[Nota BASE (N)]) -> 10 | D8: TOTAL | E8: =SUM($E6:$E7) -> 0
A10: B) Superficies planas (desde 1000 mm de diámetro) y equipos
A12: Tuberías | B12: Nota BASE (N) | C12: Ponderación Superficies Aisladas (% 1). | D12: Ponderación Calidad de aislamiento (% 2). | E12: Nota Total Obtenida (N x %1 x %2)
A13: ANEXO 2.b): Espesores de Aislamiento | B13: 6 | C13: ='Datos (SUP AISLADA)'!H31 -> 0 | D13: ='Datos (ESP AISLAMIENTO)'!E121 -> 0 | E13: =ROUND($D13*$C13*$B13,2) -> 0
A14: ANEXO 3.b): Registros de Inspección | B14: 4 | C14: ='Datos (SUP AISLADA)'!H31 -> 0 | D14: ='Datos (PPI AISLAMIENTO)'!O45 -> 0 | E14: =ROUND($D14*$C14*$B14,2) -> 0
A15: TOTAL NOTA MÁXIMA | B15: =SUM(B13:B14) -> 10 | D15: TOTAL | E15: =SUM($E13:$E14) -> 0
A17: C) Total de superfices calientes en la instalación (A)+(B)
A19: Según tabla a continuación:
A21: Sistema | B21: PESO CISA (%) | C21: NOTA PARCIAL | D21: NOTA PONDERADA
A22: Tuberías | B22: ='Datos (SUP AISLADA)'!$M$30 -> 0 | C22: =$E$8 -> 0 | D22: =IFERROR((ROUND($C$22*$B$22,2)),0) -> 0
A23: Equipos | B23: ='Datos (SUP AISLADA)'!$M$31 -> 0 | C23: =$E$15 -> 0 | D23: =IFERROR((ROUND($C$23*$B$23,2)),0) -> 0
C24: NOTA GLOBAL | D24: =SUM($D$22:$D$23) -> 0
A26: CALIFICACIÓN OBTENIDA
C28: NOTA: | D28: =D24 -> 0
B30: Rango | C30: Nota | D30: Recomendaciones
B31: más de 9 | C31: Excelente | D31: Mantenimiento Preventivo
B32: de 7 a 9 | C32: Bueno | D32: Mantenimiento Preventivo. Actuaciones puntuales
B33: de 5 a 7 | C33: Deficiente | D33: Mantenimiento Correctivo y Preventivo. Actuaciones de mejora
B34: menos de 5 | C34: Muy deficiente | D34: Actuaciones generalizadas de mejora
A36: Para imprimir el informe aditivo completo, pulse a la vez las teclas "Control", "Mayúsculas" y "P" (Ctrl+Mayus+P)

Sheet COSTE NO AISLAM
A1: COSTE DE NO AISLAMIENTO
A3: Precio adoptado energía kWh | F3: €/kWh
A5: A) Superficies de tuberías (hasta 1000 mm de diámetro)
A7: Número de horas anuales de trabajo bajo condiciones de operación | F7: horas/año
A9: Tª superficial de la instalación X (ºC) | B9: Total m² SIN AISLAR | C9: Diámetro medio (mm) | D9: Total pérdidas kW/m² | E9: Total pérdidas kWh/año | F9: Total €/año
A10: 60<X≤100 | B10: ='Datos (SUP AISLADA)'!B6-'Datos (SUP AISLADA)'!C6-'Datos (SUP AISLADA)'!D6 -> 0 | D10: =IFERROR(('Hoja Cálculos Térmicos'!Q8),0) -> 0 | E10: =D10*B10*$E$7 -> 0 | F10: =E10*$E$3 -> 0
A11: 100<X≤200 | B11: ='Datos (SUP AISLADA)'!B7-'Datos (SUP AISLADA)'!C7-'Datos (SUP AISLADA)'!D7 -> 0 | D11: =IFERROR(('Hoja Cálculos Térmicos'!Q9),0) -> 0 | E11: 0 | F11: 0
A12: 200<X≤300 | B12: ='Datos (SUP AISLADA)'!B8-'Datos (SUP AISLADA)'!C8-'Datos (SUP AISLADA)'!D8 -> 0 | D12: =IFERROR(('Hoja Cálculos Térmicos'!Q10),0) -> 0 | E12: 0 | F12: 0
A13: 300<X≤400 | B13: ='Datos (SUP AISLADA)'!B9-'Datos (SUP AISLADA)'!C9-'Datos (SUP AISLADA)'!D9 -> 0 | D13: =IFERROR(('Hoja Cálculos Térmicos'!Q11),0) -> 0 | E13: 0 | F13: 0
A14: 400<X≤500 | B14: ='Datos (SUP AISLADA)'!B10-'Datos (SUP AISLADA)'!C10-'Datos (SUP AISLADA)'!D10 -> 0 | D14: =IFERROR(('Hoja Cálculos Térmicos'!Q12),0) -> 0 | E14: 0 | F14: 0
A15: 500<X≤600 | B15: ='Datos (SUP AISLADA)'!B11-'Datos (SUP AISLADA)'!C11-'Datos (SUP AISLADA)'!D11 -> 0 | D15: =IFERROR(('Hoja Cálculos Térmicos'!Q13),0) -> 0 | E15: 0 | F15: 0
A16: 600<X≤650 | B16: ='Datos (SUP AISLADA)'!B12-'Datos (SUP AISLADA)'!C12-'Datos (SUP AISLADA)'!D12 -> 0 | D16: =IFERROR(('Hoja Cálculos Térmicos'!Q14),0) -> 0 | E16: 0 | F16: 0
A17: TOTAL | B17: =SUM(B10:B16) -> 0 | E17: =SUM(E10:E16) -> 0 | F17: =SUM(F10:F16) -> 0
A19: B) Superficies planas (desde 1000 mm de diámetro) y equipos
A21: Número de horas anuales de trabajo bajo condiciones de operación | F21: horas/año
A23: Tª superficial de la instalación X (ºC) | B23: Total m² SIN AISLAR | C23: Total pérdidas kW/m² | D23: Total pérdidas kW/m²2 | E23: Total pérdidas kWh/año
A24: 60<X≤100 | B24: ='Datos (SUP AISLADA)'!B18-'Datos (SUP AISLADA)'!C18-'Datos (SUP AISLADA)'!D18 -> 0 | C24: ='Hoja Cálculos Térmicos'!I23 -> 1.037668897 | D24: =C24*B24*$E$21 -> 0 | E24: =D24*$E$3 -> 0
A25: 100<X≤200 | B25: ='Datos (SUP AISLADA)'!B19-'Datos (SUP AISLADA)'!C19-'Datos (SUP AISLADA)'!D19 -> 0 | C25: ='Hoja Cálculos Térmicos'!I24 -> 2.510434778 | D25: =C25*B25*$E$21 -> 0 | E25: =D25*$E$3 -> 0
A26: 200<X≤300 | B26: ='Datos (SUP AISLADA)'!B20-'Datos (SUP AISLADA)'!C20-'Datos (SUP AISLADA)'!D20 -> 0 | C26: ='Hoja Cálculos Térmicos'!I25 -> 5.731453936 | D26: =C26*B26*$E$21 -> 0 | E26: =D26*$E$3 -> 0
A27: 300<X≤400 | B27: ='Datos (SUP AISLADA)'!B21-'Datos (SUP AISLADA)'!C21-'Datos (SUP AISLADA)'!D21 -> 0 | C27: ='Hoja Cálculos Térmicos'!I26 -> 10.7495452 | D27: 0 | E27: 0
A28: 400<X≤500 | B28: ='Datos (SUP AISLADA)'!B22-'Datos (SUP AISLADA)'!C22-'Datos (SUP AISLADA)'!D22 -> 0 | C28: ='Hoja Cálculos Térmicos'!I27 -> 18.24072111 | D28: 0 | E28: 0
A29: 500<X≤600 | B29: ='Datos (SUP AISLADA)'!B23-'Datos (SUP AISLADA)'!C23-'Datos (SUP AISLADA)'!D23 -> 0 | C29: ='Hoja Cálculos Térmicos'!I28 -> 29.01416068 | D29: 0 | E29: 0
A30: 600<X≤650 | B30: ='Datos (SUP AISLADA)'!B24-'Datos (SUP AISLADA)'!C24-'Datos (SUP AISLADA)'!D24 -> 0 | C30: ='Hoja Cálculos Térmicos'!I29 -> 39.80696679 | D30: 0 | E30: 0
A31: TOTAL | B31: =SUM(B24:B30) -> 0 | E31: =SUM(E24:E30) -> 0
A33: C) Coste de no aislamiento en todas las superficies
A35: Tª superficial de la instalación X (ºC) | B35: Total m² SIN AISLAR | C35: Total €/año
A36: 60<X≤100 | B36: =B10+B24 -> 0 | C36: =F10+E24 -> 0
A37: 100<X≤200 | B37: 0 | C37: =F11+E25 -> 0
A38: 200<X≤300 | B38: 0 | C38: 0
A39: 300<X≤400 | B39: 0 | C39: 0
A40: 400<X≤500 | B40: 0 | C40: 0
A41: 500<X≤600 | B41: 0 | C41: 0
A42: 600<X≤650 | B42: 0 | C42: 0
A43: TOTAL | B43: =SUM(B36:B42) -> 0 | C43: =SUM(C36:C42) -> 0
A45: Para imprimir el informe aditivo completo, pulse a la vez las teclas "Control", "Mayúsculas" y "P" (Ctrl+Mayus+P)

Sheet Datos (GENERALES) (IMP) (hidden)
B2: HERRAMIENTA DE PREDIAGNÓSTICO DE ESTADO DE AISLAMIENTO DE SUPERFICIES CALIENTES EN INSTALACIONES INDUSTRIALES | J2: CÓDIGO DE INSPECCIÓN
J3: =IF('Datos (GENERALES)'!B3=0," ",'Datos (GENERALES)'!B3) -> 
A5: DATOS GENERALES
B7: PROPIEDAD DE LA INSTALACIÓN | D7: =IF('Datos (GENERALES)'!B7=0," ",'Datos (GENERALES)'!B7) -> 
B9: DENOMINACIÓN DE LA INSTALACIÓN | D9: =IF('Datos (GENERALES)'!B9=0," ",'Datos (GENERALES)'!B9) -> 
B11: DIRECCIÓN POSTAL | D11: =IF('Datos (GENERALES)'!B11=0," ",'Datos (GENERALES)'!B11) -> 
B14: MUNICIPIO | D14: =IF('Datos (GENERALES)'!B13=0," ",'Datos (GENERALES)'!B13) ->  | G14: CÓDIGO POSTAL | J14: =IF('Datos (GENERALES)'!B15=0," ",'Datos (GENERALES)'!B15) -> 
B16: PROVINCIA | D16: =IF('Datos (GENERALES)'!B17=0," ",'Datos (GENERALES)'!B17) -> 
B18: COMUNIDAD AUTÓNOMA | D18: =IFERROR((VLOOKUP(D16,'Hoja de programación'!$L$2:$M$54,2,FALSE))," ") -> 
A20: DATOS DEL INSPECTOR
B22: NOMBRE Y APELLIDOS | D22: =IF('Datos (GENERALES)'!B23=0," ",'Datos (GENERALES)'!B23) ->  | G22: NIF | H22: =IF('Datos (GENERALES)'!B25=0," ",'Datos (GENERALES)'!B25) -> 
B24: RAZÓN SOCIAL | D24: =IF('Datos (GENERALES)'!B27=0," ",'Datos (GENERALES)'!B27) ->  | G24: CIF | H24: =IF('Datos (GENERALES)'!B29=0,"",'Datos (GENERALES)'!B29) -> 
B26: DIRECCIÓN POSTAL | D26: =IF('Datos (GENERALES)'!B31=0," ",'Datos (GENERALES)'!B31) -> 
B29: MUNICIPIO | D29: =IF('Datos (GENERALES)'!B33=0," ",'Datos (GENERALES)'!B33) ->  | G29: CÓDIGO POSTAL | J29: =IF('Datos (GENERALES)'!B35=0," ",'Datos (GENERALES)'!B35) -> 
B31: PROVINCIA | D31: =IF('Datos (GENERALES)'!B37=0," ",'Datos (GENERALES)'!B37) ->  | G31: e-mail | H31: =IF('Datos (GENERALES)'!B41=0," ",'Datos (GENERALES)'!B41) -> 
B33: COMUNIDAD AUTÓNOMA | D33: =IFERROR((VLOOKUP(D31,'Hoja de programación'!$L$2:$M$54,2,FALSE))," ") -> 
A35: DATOS DE LA INSPECCIÓN
B37: FECHA | D37: =IF('Datos (GENERALES)'!B45=0," ",'Datos (GENERALES)'!B45) -> 
B39: REPRESENTANTE DE LA PROPIEDAD | D39: =IF('Datos (GENERALES)'!B47=0," ",'Datos (GENERALES)'!B47) -> 
A41: ALCANCE DEL ESTUDIO
A43: A) Tuberías (hasta 1000 mm de diámetro) o sistemas de tuberías - Descripción
B45: =IF('Datos (GENERALES)'!A53=0," ",'Datos (GENERALES)'!A53) -> 
A52: B) Superficies planas (desde 1000 mm de diámetro) y equipos - Descripción
B54: =IF('Datos (GENERALES)'!A57=0," ",'Datos (GENERALES)'!A57) -> 
A61: DATOS DE LA INSTALACIÓN
B63: Los equipos y tuberías a analizar aparecen en los listados siguientes
A65: A) Tuberías (hasta 1000 mm de diámetro) o sistemas de tuberías
B67: Descripción de tuberías/sistemas de tuberías objeto de la inspección.
B69: Item | C69: Descripción | D69: Rango de Temperaturas | E69: Material de aislamiento | F69: Espesor/es de aislamiento | H69: Material de recubrimiento | K69: Espesor de recubrimiento
B70: A1 | C70: =IF('Datos (GENERALES)'!B68=0," ",'Datos (GENERALES)'!B68) ->  | D70: =IF('Datos (GENERALES)'!C68=0," ",'Datos (GENERALES)'!C68) ->  | E70: =IF('Datos (GENERALES)'!D68=0," ",'Datos (GENERALES)'!D68) ->  | F70: =IF('Datos (GENERALES)'!E68=0," ",'Datos (GENERALES)'!E68) ->  | H70: =IF('Datos (GENERALES)'!F68=0," ",'Datos (GENERALES)'!F68) ->  | K70: =IF('Datos (GENERALES)'!G68=0," ",'Datos (GENERALES)'!G68) -> 
B71: A2 | C71: =IF('Datos (GENERALES)'!B69=0," ",'Datos (GENERALES)'!B69) ->  | D71: =IF('Datos (GENERALES)'!C69=0," ",'Datos (GENERALES)'!C69) ->  | E71: =IF('Datos (GENERALES)'!D69=0," ",'Datos (GENERALES)'!D69) ->  | F71: =IF('Datos (GENERALES)'!E69=0," ",'Datos (GENERALES)'!E69) ->  | H71: =IF('Datos (GENERALES)'!F69=0," ",'Datos (GENERALES)'!F69) ->  | K71: =IF('Datos (GENERALES)'!G69=0," ",'Datos (GENERALES)'!G69) -> 
B72: A3 | C72: =IF('Datos (GENERALES)'!B70=0," ",'Datos (GENERALES)'!B70) ->  | D72: =IF('Datos (GENERALES)'!C70=0," ",'Datos (GENERALES)'!C70) ->  | E72: =IF('Datos (GENERALES)'!D70=0," ",'Datos (GENERALES)'!D70) ->  | F72: =IF('Datos (GENERALES)'!E70=0," ",'Datos (GENERALES)'!E70) ->  | H72: =IF('Datos (GENERALES)'!F70=0," ",'Datos (GENERALES)'!F70) ->  | K72: =IF('Datos (GENERALES)'!G70=0," ",'Datos (GENERALES)'!G70) -> 
B73: A4 | C73: =IF('Datos (GENERALES)'!B71=0," ",'Datos (GENERALES)'!B71) ->  | D73: =IF('Datos (GENERALES)'!C71=0," ",'Datos (GENERALES)'!C71) ->  | E73: =IF('Datos (GENERALES)'!D71=0," ",'Datos (GENERALES)'!D71) ->  | F73: =IF('Datos (GENERALES)'!E71=0," ",'Datos (GENERALES)'!E71) ->  | H73: =IF('Datos (GENERALES)'!F71=0," ",'Datos (GENERALES)'!F71) ->  | K73: =IF('Datos (GENERALES)'!G71=0," ",'Datos (GENERALES)'!G71) -> 
B74: A5 | C74: =IF('Datos (GENERALES)'!B72=0," ",'Datos (GENERALES)'!B72) ->  | D74: =IF('Datos (GENERALES)'!C72=0," ",'Datos (GENERALES)'!C72) ->  | E74: =IF('Datos (GENERALES)'!D72=0," ",'Datos (GENERALES)'!D72) ->  | F74: =IF('Datos (GENERALES)'!E72=0," ",'Datos (GENERALES)'!E72) ->  | H74: =IF('Datos (GENERALES)'!F72=0," ",'Datos (GENERALES)'!F72) ->  | K74: =IF('Datos (GENERALES)'!G72=0," ",'Datos (GENERALES)'!G72) -> 
B75: A6 | C75: =IF('Datos (GENERALES)'!B73=0," ",'Datos (GENERALES)'!B73) ->  | D75: =IF('Datos (GENERALES)'!C73=0," ",'Datos (GENERALES)'!C73) ->  | E75: =IF('Datos (GENERALES)'!D73=0," ",'Datos (GENERALES)'!D73) ->  | F75: =IF('Datos (GENERALES)'!E73=0," ",'Datos (GENERALES)'!E73) ->  | H75: =IF('Datos (GENERALES)'!F73=0," ",'Datos (GENERALES)'!F73) ->  | K75: =IF('Datos (GENERALES)'!G73=0," ",'Datos (GENERALES)'!G73) -> 
B76: A7 | C76: =IF('Datos (GENERALES)'!B74=0," ",'Datos (GENERALES)'!B74) ->  | D76: =IF('Datos (GENERALES)'!C74=0," ",'Datos (GENERALES)'!C74) ->  | E76: =IF('Datos (GENERALES)'!D74=0," ",'Datos (GENERALES)'!D74) ->  | F76: =IF('Datos (GENERALES)'!E74=0," ",'Datos (GENERALES)'!E74) ->  | H76: =IF('Datos (GENERALES)'!F74=0," ",'Datos (GENERALES)'!F74) ->  | K76: =IF('Datos (GENERALES)'!G74=0," ",'Datos (GENERALES)'!G74) -> 
B77: A8 | C77: =IF('Datos (GENERALES)'!B75=0," ",'Datos (GENERALES)'!B75) ->  | D77: =IF('Datos (GENERALES)'!C75=0," ",'Datos (GENERALES)'!C75) ->  | E77: =IF('Datos (GENERALES)'!D75=0," ",'Datos (GENERALES)'!D75) ->  | F77: =IF('Datos (GENERALES)'!E75=0," ",'Datos (GENERALES)'!E75) ->  | H77: =IF('Datos (GENERALES)'!F75=0," ",'Datos (GENERALES)'!F75) ->  | K77: =IF('Datos (GENERALES)'!G75=0," ",'Datos (GENERALES)'!G75) -> 
B78: A9 | C78: =IF('Datos (GENERALES)'!B76=0," ",'Datos (GENERALES)'!B76) ->  | D78: =IF('Datos (GENERALES)'!C76=0," ",'Datos (GENERALES)'!C76) ->  | E78: =IF('Datos (GENERALES)'!D76=0," ",'Datos (GENERALES)'!D76) ->  | F78: =IF('Datos (GENERALES)'!E76=0," ",'Datos (GENERALES)'!E76) ->  | H78: =IF('Datos (GENERALES)'!F76=0," ",'Datos (GENERALES)'!F76) ->  | K78: =IF('Datos (GENERALES)'!G76=0," ",'Datos (GENERALES)'!G76) -> 
B79: A10 | C79: =IF('Datos (GENERALES)'!B77=0," ",'Datos (GENERALES)'!B77) ->  | D79: =IF('Datos (GENERALES)'!C77=0," ",'Datos (GENERALES)'!C77) ->  | E79: =IF('Datos (GENERALES)'!D77=0," ",'Datos (GENERALES)'!D77) ->  | F79: =IF('Datos (GENERALES)'!E77=0," ",'Datos (GENERALES)'!E77) ->  | H79: =IF('Datos (GENERALES)'!F77=0," ",'Datos (GENERALES)'!F77) ->  | K79: =IF('Datos (GENERALES)'!G77=0," ",'Datos (GENERALES)'!G77) -> 
A82: B) Superficies planas (desde 1000 mm de diámetro) y equipos
B84: Descripción de superficies planas objeto de la inspección.
B86: Item | C86: Descripción | D86: Rango de Temperaturas | E86: Material de aislamiento | F86: Espesor/es de aislamiento | H86: Material de recubrimiento | K86: Espesor de recubrimiento
B87: B1 | C87: =IF('Datos (GENERALES)'!B85=0," ",'Datos (GENERALES)'!B85) ->  | D87: =IF('Datos (GENERALES)'!C85=0," ",'Datos (GENERALES)'!C85) ->  | E87: =IF('Datos (GENERALES)'!D85=0," ",'Datos (GENERALES)'!D85) ->  | F87: =IF('Datos (GENERALES)'!E85=0," ",'Datos (GENERALES)'!E85) ->  | H87: =IF('Datos (GENERALES)'!F85=0," ",'Datos (GENERALES)'!F85) ->  | K87: =IF('Datos (GENERALES)'!G85=0," ",'Datos (GENERALES)'!G85) -> 
B88: B2 | C88: =IF('Datos (GENERALES)'!B86=0," ",'Datos (GENERALES)'!B86) ->  | D88: =IF('Datos (GENERALES)'!C86=0," ",'Datos (GENERALES)'!C86) ->  | E88: =IF('Datos (GENERALES)'!D86=0," ",'Datos (GENERALES)'!D86) ->  | F88: =IF('Datos (GENERALES)'!E86=0," ",'Datos (GENERALES)'!E86) ->  | H88: =IF('Datos (GENERALES)'!F86=0," ",'Datos (GENERALES)'!F86) ->  | K88: =IF('Datos (GENERALES)'!G86=0," ",'Datos (GENERALES)'!G86) -> 
B89: B3 | C89: =IF('Datos (GENERALES)'!B87=0," ",'Datos (GENERALES)'!B87) ->  | D89: =IF('Datos (GENERALES)'!C87=0," ",'Datos (GENERALES)'!C87) ->  | E89: =IF('Datos (GENERALES)'!D87=0," ",'Datos (GENERALES)'!D87) ->  | F89: =IF('Datos (GENERALES)'!E87=0," ",'Datos (GENERALES)'!E87) ->  | H89: =IF('Datos (GENERALES)'!F87=0," ",'Datos (GENERALES)'!F87) ->  | K89: =IF('Datos (GENERALES)'!G87=0," ",'Datos (GENERALES)'!G87) -> 
B90: B4 | C90: =IF('Datos (GENERALES)'!B88=0," ",'Datos (GENERALES)'!B88) ->  | D90: =IF('Datos (GENERALES)'!C88=0," ",'Datos (GENERALES)'!C88) ->  | E90: =IF('Datos (GENERALES)'!D88=0," ",'Datos (GENERALES)'!D88) ->  | F90: =IF('Datos (GENERALES)'!E88=0," ",'Datos (GENERALES)'!E88) ->  | H90: =IF('Datos (GENERALES)'!F88=0," ",'Datos (GENERALES)'!F88) ->  | K90: =IF('Datos (GENERALES)'!G88=0," ",'Datos (GENERALES)'!G88) -> 
B91: B5 | C91: =IF('Datos (GENERALES)'!B89=0," ",'Datos (GENERALES)'!B89) ->  | D91: =IF('Datos (GENERALES)'!C89=0," ",'Datos (GENERALES)'!C89) ->  | E91: =IF('Datos (GENERALES)'!D89=0," ",'Datos (GENERALES)'!D89) ->  | F91: =IF('Datos (GENERALES)'!E89=0," ",'Datos (GENERALES)'!E89) ->  | H91: =IF('Datos (GENERALES)'!F89=0," ",'Datos (GENERALES)'!F89) ->  | K91: =IF('Datos (GENERALES)'!G89=0," ",'Datos (GENERALES)'!G89) -> 
B92: B6 | C92: =IF('Datos (GENERALES)'!B90=0," ",'Datos (GENERALES)'!B90) ->  | D92: =IF('Datos (GENERALES)'!C90=0," ",'Datos (GENERALES)'!C90) ->  | E92: =IF('Datos (GENERALES)'!D90=0," ",'Datos (GENERALES)'!D90) ->  | F92: =IF('Datos (GENERALES)'!E90=0," ",'Datos (GENERALES)'!E90) ->  | H92: =IF('Datos (GENERALES)'!F90=0," ",'Datos (GENERALES)'!F90) ->  | K92: =IF('Datos (GENERALES)'!G90=0," ",'Datos (GENERALES)'!G90) -> 
B93: B7 | C93: =IF('Datos (GENERALES)'!B91=0," ",'Datos (GENERALES)'!B91) ->  | D93: =IF('Datos (GENERALES)'!C91=0," ",'Datos (GENERALES)'!C91) ->  | E93: =IF('Datos (GENERALES)'!D91=0," ",'Datos (GENERALES)'!D91) ->  | F93: =IF('Datos (GENERALES)'!E91=0," ",'Datos (GENERALES)'!E91) ->  | H93: =IF('Datos (GENERALES)'!F91=0," ",'Datos (GENERALES)'!F91) ->  | K93: =IF('Datos (GENERALES)'!G91=0," ",'Datos (GENERALES)'!G91) -> 
B94: B8 | C94: =IF('Datos (GENERALES)'!B92=0," ",'Datos (GENERALES)'!B92) ->  | D94: =IF('Datos (GENERALES)'!C92=0," ",'Datos (GENERALES)'!C92) ->  | E94: =IF('Datos (GENERALES)'!D92=0," ",'Datos (GENERALES)'!D92) ->  | F94: =IF('Datos (GENERALES)'!E92=0," ",'Datos (GENERALES)'!E92) ->  | H94: =IF('Datos (GENERALES)'!F92=0," ",'Datos (GENERALES)'!F92) ->  | K94: =IF('Datos (GENERALES)'!G92=0," ",'Datos (GENERALES)'!G92) -> 
B95: B9 | C95: =IF('Datos (GENERALES)'!B93=0," ",'Datos (GENERALES)'!B93) ->  | D95: =IF('Datos (GENERALES)'!C93=0," ",'Datos (GENERALES)'!C93) ->  | E95: =IF('Datos (GENERALES)'!D93=0," ",'Datos (GENERALES)'!D93) ->  | F95: =IF('Datos (GENERALES)'!E93=0," ",'Datos (GENERALES)'!E93) ->  | H95: =IF('Datos (GENERALES)'!F93=0," ",'Datos (GENERALES)'!F93) ->  | K95: =IF('Datos (GENERALES)'!G93=0," ",'Datos (GENERALES)'!G93) -> 
B96: B10 | C96: =IF('Datos (GENERALES)'!B94=0," ",'Datos (GENERALES)'!B94) ->  | D96: =IF('Datos (GENERALES)'!C94=0," ",'Datos (GENERALES)'!C94) ->  | E96: =IF('Datos (GENERALES)'!D94=0," ",'Datos (GENERALES)'!D94) ->  | F96: =IF('Datos (GENERALES)'!E94=0," ",'Datos (GENERALES)'!E94) ->  | H96: =IF('Datos (GENERALES)'!F94=0," ",'Datos (GENERALES)'!F94) ->  | K96: =IF('Datos (GENERALES)'!G94=0," ",'Datos (GENERALES)'!G94) -> 
A99: C) Condiciones Ambientales de la instalación (sólo para el cálculo de pérdidas)
C101: Instalaciones exteriores
C103: Temperatura ambiental media del lugar (Promedio anual TA(ºC) de Guia Técnica Condiciones Clímaticas IDAE):
H104: =IF('Datos (GENERALES)'!B101=0," ",'Datos (GENERALES)'!B101) ->  | K104: ºC
C106: Instalaciones interiores
C108: Temperatura ambiental media del interior/temperatura medida el día de la inspección : | H108: =IF('Datos (GENERALES)'!B106=0," ",'Datos (GENERALES)'!B106) ->  | K108: ºC
B111: Ante cualquier duda relativa al uso de esta herramienta, puede contactar con: | H111: consultas@andimai.es

Sheet Datos (SUP AISLADA) (IMP) (hidden)
A1: ANEXO 1: SUPERFICIE AISLADA
A3: A) Superficies de tuberías (hasta 1000 mm de diámetro)
B5: Tª superficial de la instalación (ºC) | C5: Total m² tubería | D5: Total m² aislados para Conservación de Calor (CC) | E5: Total m² aislados para Protección Personal (PP) | G5: % de superficie aislada para Conservación de Calor (CC) | H5: % de superficie aislada para protección personal (PP) | I5: % de superficie aislada (CC+PP) | J5: % de superficie sin aislamiento | L5: Temperatura media de cada tramo (ºC) | M5: TI Temperatura Incremental media para cálculo de CISA T(ºC)-60ºC | N5: CISA60 (m²xTI)/1000
B6: 60<X≤100 | C6: =IF('Datos (SUP AISLADA)'!B6=0," ",'Datos (SUP AISLADA)'!B6) ->  | D6: =IF('Datos (SUP AISLADA)'!C6=0," ",'Datos (SUP AISLADA)'!C6) ->  | E6: =IF('Datos (SUP AISLADA)'!D6=0," ",'Datos (SUP AISLADA)'!D6) ->  | G6: =IF('Datos (SUP AISLADA)'!F6=0," ",'Datos (SUP AISLADA)'!F6) ->  | H6: =IF('Datos (SUP AISLADA)'!G6=0," ",'Datos (SUP AISLADA)'!G6) ->  | I6: =IF('Datos (SUP AISLADA)'!H6=0," ",'Datos (SUP AISLADA)'!H6) ->  | J6: =IF('Datos (SUP AISLADA)'!I6=0," ",'Datos (SUP AISLADA)'!I6) ->  | L6: 80 | M6: =L6-60 -> 20 | N6: =IF('Datos (SUP AISLADA)'!M6=0," ",'Datos (SUP AISLADA)'!M6) -> 
B7: 100<X≤200 | C7: =IF('Datos (SUP AISLADA)'!B7=0," ",'Datos (SUP AISLADA)'!B7) ->  | D7: =IF('Datos (SUP AISLADA)'!C7=0," ",'Datos (SUP AISLADA)'!C7) ->  | E7: =IF('Datos (SUP AISLADA)'!D7=0," ",'Datos (SUP AISLADA)'!D7) ->  | G7: =IF('Datos (SUP AISLADA)'!F7=0," ",'Datos (SUP AISLADA)'!F7) ->  | H7: =IF('Datos (SUP AISLADA)'!G7=0," ",'Datos (SUP AISLADA)'!G7) ->  | I7: =IF('Datos (SUP AISLADA)'!H7=0," ",'Datos (SUP AISLADA)'!H7) ->  | J7: =IF('Datos (SUP AISLADA)'!I7=0," ",'Datos (SUP AISLADA)'!I7) ->  | L7: 150 | M7: =L7-60 -> 90 | N7: =IF('Datos (SUP AISLADA)'!M7=0," ",'Datos (SUP AISLADA)'!M7) -> 
B8: 200<X≤300 | C8: =IF('Datos (SUP AISLADA)'!B8=0," ",'Datos (SUP AISLADA)'!B8) ->  | D8: =IF('Datos (SUP AISLADA)'!C8=0," ",'Datos (SUP AISLADA)'!C8) ->  | E8: =IF('Datos (SUP AISLADA)'!D8=0," ",'Datos (SUP AISLADA)'!D8) ->  | G8: =IF('Datos (SUP AISLADA)'!F8=0," ",'Datos (SUP AISLADA)'!F8) ->  | H8: =IF('Datos (SUP AISLADA)'!G8=0," ",'Datos (SUP AISLADA)'!G8) ->  | I8: =IF('Datos (SUP AISLADA)'!H8=0," ",'Datos (SUP AISLADA)'!H8) ->  | J8: =IF('Datos (SUP AISLADA)'!I8=0," ",'Datos (SUP AISLADA)'!I8) ->  | L8: 250 | M8: 190 | N8: =IF('Datos (SUP AISLADA)'!M8=0," ",'Datos (SUP AISLADA)'!M8) -> 
B9: 300<X≤400 | C9: =IF('Datos (SUP AISLADA)'!B9=0," ",'Datos (SUP AISLADA)'!B9) ->  | D9: =IF('Datos (SUP AISLADA)'!C9=0," ",'Datos (SUP AISLADA)'!C9) ->  | E9: =IF('Datos (SUP AISLADA)'!D9=0," ",'Datos (SUP AISLADA)'!D9) ->  | G9: =IF('Datos (SUP AISLADA)'!F9=0," ",'Datos (SUP AISLADA)'!F9) ->  | H9: =IF('Datos (SUP AISLADA)'!G9=0," ",'Datos (SUP AISLADA)'!G9) ->  | I9: =IF('Datos (SUP AISLADA)'!H9=0," ",'Datos (SUP AISLADA)'!H9) ->  | J9: =IF('Datos (SUP AISLADA)'!I9=0," ",'Datos (SUP AISLADA)'!I9) ->  | L9: 350 | M9: 290 | N9: =IF('Datos (SUP AISLADA)'!M9=0," ",'Datos (SUP AISLADA)'!M9) -> 
B10: 400<X≤500 | C10: =IF('Datos (SUP AISLADA)'!B10=0," ",'Datos (SUP AISLADA)'!B10) ->  | D10: =IF('Datos (SUP AISLADA)'!C10=0," ",'Datos (SUP AISLADA)'!C10) ->  | E10: =IF('Datos (SUP AISLADA)'!D10=0," ",'Datos (SUP AISLADA)'!D10) ->  | G10: =IF('Datos (SUP AISLADA)'!F10=0," ",'Datos (SUP AISLADA)'!F10) ->  | H10: =IF('Datos (SUP AISLADA)'!G10=0," ",'Datos (SUP AISLADA)'!G10) ->  | I10: =IF('Datos (SUP AISLADA)'!H10=0," ",'Datos (SUP AISLADA)'!H10) ->  | J10: =IF('Datos (SUP AISLADA)'!I10=0," ",'Datos (SUP AISLADA)'!I10) ->  | L10: 450 | M10: 390 | N10: =IF('Datos (SUP AISLADA)'!M10=0," ",'Datos (SUP AISLADA)'!M10) -> 
B11: 500<X≤600 | C11: =IF('Datos (SUP AISLADA)'!B11=0," ",'Datos (SUP AISLADA)'!B11) ->  | D11: =IF('Datos (SUP AISLADA)'!C11=0," ",'Datos (SUP AISLADA)'!C11) ->  | E11: =IF('Datos (SUP AISLADA)'!D11=0," ",'Datos (SUP AISLADA)'!D11) ->  | G11: =IF('Datos (SUP AISLADA)'!F11=0," ",'Datos (SUP AISLADA)'!F11) ->  | H11: =IF('Datos (SUP AISLADA)'!G11=0," ",'Datos (SUP AISLADA)'!G11) ->  | I11: =IF('Datos (SUP AISLADA)'!H11=0," ",'Datos (SUP AISLADA)'!H11) ->  | J11: =IF('Datos (SUP AISLADA)'!I11=0," ",'Datos (SUP AISLADA)'!I11) ->  | L11: 550 | M11: 490 | N11: =IF('Datos (SUP AISLADA)'!M11=0," ",'Datos (SUP AISLADA)'!M11) -> 
B12: 600<X≤650 | C12: =IF('Datos (SUP AISLADA)'!B12=0," ",'Datos (SUP AISLADA)'!B12) ->  | D12: =IF('Datos (SUP AISLADA)'!C12=0," ",'Datos (SUP AISLADA)'!C12) ->  | E12: =IF('Datos (SUP AISLADA)'!D12=0," ",'Datos (SUP AISLADA)'!D12) ->  | G12: =IF('Datos (SUP AISLADA)'!F12=0," ",'Datos (SUP AISLADA)'!F12) ->  | H12: =IF('Datos (SUP AISLADA)'!G12=0," ",'Datos (SUP AISLADA)'!G12) ->  | I12: =IF('Datos (SUP AISLADA)'!H12=0," ",'Datos (SUP AISLADA)'!H12) ->  | J12: =IF('Datos (SUP AISLADA)'!I12=0," ",'Datos (SUP AISLADA)'!I12) ->  | L12: 625 | M12: 565 | N12: =IF('Datos (SUP AISLADA)'!M12=0," ",'Datos (SUP AISLADA)'!M12) -> 
B13: TOTAL | C13: =SUM(C6:C12) -> 0 | D13: =SUM(D6:D12) -> 0 | E13: =SUM(E6:E12) -> 0 | G13: =IF(C13<>0,D13/C13,0) -> 0 | H13: =IF(C13<>0,E13/C13,0) -> 0 | I13: =G13+H13 -> 0 | J13: =IF(C13<>0,1-G13-H13,0) -> 0 | M13: TOTAL | N13: =SUM(N6:N12) -> 0
A15: B) Superficies planas (desde 1000 mm de diámetro) y equipos
B17: Tª superficial de la instalación (ºC) | C17: Total m² equipo | D17: Total m² aislados para Conservación de Calor (CC) | E17: Total m² aislados para Protección Personal (PP) | G17: % de superficie aislada para Conservación de Calor (CC) | H17: % de superficie aislada para protección personal (PP) | I17: % de superficie aislada (CC+PP) | J17: % de superficie sin aislamiento | L17: Temperatura media de cada tramo (ºC) | M17: TI Temperatura Incremental media para cálculo de CISA T(ºC)-60ºC | N17: CISA60 (m²xTI)/1000
B18: 60<X≤100 | C18: =IF('Datos (SUP AISLADA)'!B18=0," ",'Datos (SUP AISLADA)'!B18) ->  | D18: =IF('Datos (SUP AISLADA)'!C18=0," ",'Datos (SUP AISLADA)'!C18) ->  | E18: =IF('Datos (SUP AISLADA)'!D18=0," ",'Datos (SUP AISLADA)'!D18) ->  | G18: =IF('Datos (SUP AISLADA)'!F18=0," ",'Datos (SUP AISLADA)'!F18) ->  | H18: =IF('Datos (SUP AISLADA)'!G18=0," ",'Datos (SUP AISLADA)'!G18) ->  | I18: =IF('Datos (SUP AISLADA)'!H18=0," ",'Datos (SUP AISLADA)'!H18) ->  | J18: =IF('Datos (SUP AISLADA)'!I18=0," ",'Datos (SUP AISLADA)'!I18) ->  | L18: 80 | M18: =L18-60 -> 20 | N18: =IF('Datos (SUP AISLADA)'!M18=0," ",'Datos (SUP AISLADA)'!M18) -> 
B19: 100<X≤200 | C19: =IF('Datos (SUP AISLADA)'!B19=0," ",'Datos (SUP AISLADA)'!B19) ->  | D19: =IF('Datos (SUP AISLADA)'!C19=0," ",'Datos (SUP AISLADA)'!C19) ->  | E19: =IF('Datos (SUP AISLADA)'!D19=0," ",'Datos (SUP AISLADA)'!D19) ->  | G19: =IF('Datos (SUP AISLADA)'!F19=0," ",'Datos (SUP AISLADA)'!F19) ->  | H19: =IF('Datos (SUP AISLADA)'!G19=0," ",'Datos (SUP AISLADA)'!G19) ->  | I19: =IF('Datos (SUP AISLADA)'!H19=0," ",'Datos (SUP AISLADA)'!H19) ->  | J19: =IF('Datos (SUP AISLADA)'!I19=0," ",'Datos (SUP AISLADA)'!I19) ->  | L19: 150 | M19: =L19-60 -> 90 | N19: =IF('Datos (SUP AISLADA)'!M19=0," ",'Datos (SUP AISLADA)'!M19) -> 
B20: 200<X≤300 | C20: =IF('Datos (SUP AISLADA)'!B20=0," ",'Datos (SUP AISLADA)'!B20) ->  | D20: =IF('Datos (SUP AISLADA)'!C20=0," ",'Datos (SUP AISLADA)'!C20) ->  | E20: =IF('Datos (SUP AISLADA)'!D20=0," ",'Datos (SUP AISLADA)'!D20) ->  | G20: =IF('Datos (SUP AISLADA)'!F20=0," ",'Datos (SUP AISLADA)'!F20) ->  | H20: =IF('Datos (SUP AISLADA)'!G20=0," ",'Datos (SUP AISLADA)'!G20) ->  | I20: =IF('Datos (SUP AISLADA)'!H20=0," ",'Datos (SUP AISLADA)'!H20) ->  | J20: =IF('Datos (SUP AISLADA)'!I20=0," ",'Datos (SUP AISLADA)'!I20) ->  | L20: 250 | M20: 190 | N20: =IF('Datos (SUP AISLADA)'!M20=0," ",'Datos (SUP AISLADA)'!M20) -> 
B21: 300<X≤400 | C21: =IF('Datos (SUP AISLADA)'!B21=0," ",'Datos (SUP AISLADA)'!B21) ->  | D21: =IF('Datos (SUP AISLADA)'!C21=0," ",'Datos (SUP AISLADA)'!C21) ->  | E21: =IF('Datos (SUP AISLADA)'!D21=0," ",'Datos (SUP AISLADA)'!D21) ->  | G21: =IF('Datos (SUP AISLADA)'!F21=0," ",'Datos (SUP AISLADA)'!F21) ->  | H21: =IF('Datos (SUP AISLADA)'!G21=0," ",'Datos (SUP AISLADA)'!G21) ->  | I21: =IF('Datos (SUP AISLADA)'!H21=0," ",'Datos (SUP AISLADA)'!H21) ->  | J21: =IF('Datos (SUP AISLADA)'!I21=0," ",'Datos (SUP AISLADA)'!I21) ->  | L21: 350 | M21: 290 | N21: =IF('Datos (SUP AISLADA)'!M21=0," ",'Datos (SUP AISLADA)'!M21) -> 
B22: 400<X≤500 | C22: =IF('Datos (SUP AISLADA)'!B22=0," ",'Datos (SUP AISLADA)'!B22) ->  | D22: =IF('Datos (SUP AISLADA)'!C22=0," ",'Datos (SUP AISLADA)'!C22) ->  | E22: =IF('Datos (SUP AISLADA)'!D22=0," ",'Datos (SUP AISLADA)'!D22) ->  | G22: =IF('Datos (SUP AISLADA)'!F22=0," ",'Datos (SUP AISLADA)'!F22) ->  | H22: =IF('Datos (SUP AISLADA)'!G22=0," ",'Datos (SUP AISLADA)'!G22) ->  | I22: =IF('Datos (SUP AISLADA)'!H22=0," ",'Datos (SUP AISLADA)'!H22) ->  | J22: =IF('Datos (SUP AISLADA)'!I22=0," ",'Datos (SUP AISLADA)'!I22) ->  | L22: 450 | M22: 390 | N22: =IF('Datos (SUP AISLADA)'!M22=0," ",'Datos (SUP AISLADA)'!M22) -> 
B23: 500<X≤600 | C23: =IF('Datos (SUP AISLADA)'!B23=0," ",'Datos (SUP AISLADA)'!B23) ->  | D23: =IF('Datos (SUP AISLADA)'!C23=0," ",'Datos (SUP AISLADA)'!C23) ->  | E23: =IF('Datos (SUP AISLADA)'!D23=0," ",'Datos (SUP AISLADA)'!D23) ->  | G23: =IF('Datos (SUP AISLADA)'!F23=0," ",'Datos (SUP AISLADA)'!F23) ->  | H23: =IF('Datos (SUP AISLADA)'!G23=0," ",'Datos (SUP AISLADA)'!G23) ->  | I23: =IF('Datos (SUP AISLADA)'!H23=0," ",'Datos (SUP AISLADA)'!H23) ->  | J23: =IF('Datos (SUP AISLADA)'!I23=0," ",'Datos (SUP AISLADA)'!I23) ->  | L23: 550 | M23: 490 | N23: =IF('Datos (SUP AISLADA)'!M23=0," ",'Datos (SUP AISLADA)'!M23) -> 
B24: 600<X≤650 | C24: =IF('Datos (SUP AISLADA)'!B24=0," ",'Datos (SUP AISLADA)'!B24) ->  | D24: =IF('Datos (SUP AISLADA)'!C24=0," ",'Datos (SUP AISLADA)'!C24) ->  | E24: =IF('Datos (SUP AISLADA)'!D24=0," ",'Datos (SUP AISLADA)'!D24) ->  | G24: =IF('Datos (SUP AISLADA)'!F24=0," ",'Datos (SUP AISLADA)'!F24) ->  | H24: =IF('Datos (SUP AISLADA)'!G24=0," ",'Datos (SUP AISLADA)'!G24) ->  | I24: =IF('Datos (SUP AISLADA)'!H24=0," ",'Datos (SUP AISLADA)'!H24) ->  | J24: =IF('Datos (SUP AISLADA)'!I24=0," ",'Datos (SUP AISLADA)'!I24) ->  | L24: 625 | M24: 565 | N24: =IF('Datos (SUP AISLADA)'!M24=0," ",'Datos (SUP AISLADA)'!M24) -> 
B25: TOTAL | C25: =SUM(C18:C24) -> 0 | D25: =SUM(D18:D24) -> 0 | E25: =SUM(E18:E24) -> 0 | G25: =IF(C25<>0,D25/C25,0) -> 0 | H25: =IF(C25<>0,E25/C25,0) -> 0 | I25: =G25+H25 -> 0 | J25: =IF(C25<>0,1-G25-H25,0) -> 0 | M25: TOTAL | N25: =SUM(N18:N24) -> 0
A27: C) Total de superfices calientes en la instalación (A)+(B)
B29: Tª superficial de la instalación (ºC) | C29: Total m² | D29: Total m² aislados para Conservación de Calor (CC) | E29: Total m² aislados para Protección Personal (PP) | G29: % de superficie aislada para Conservación de Calor (CC) | H29: % de superficie aislada para protección personal (PP) | I29: % de superficie aislada (CC+PP) | J29: % de superficie sin aislamiento | M29: CISA60 (m²xTI)/1000 | N29: % REPARTO CISA60
B30: TOTAL SUPERFICIES CALIENTES TUBERÍA | C30: =C13 -> 0 | D30: =D13 -> 0 | E30: =E13 -> 0 | G30: =G13 -> 0 | H30: =H13 -> 0 | I30: =I13 -> 0 | J30: =J13 -> 0 | M30: =N13 -> 0 | N30: =IFERROR((ROUND(M30/M32,2)),0) -> 0
B31: TOTAL SUPERFICIES CALIENTES EQUIPOS | C31: =C25 -> 0 | D31: =D25 -> 0 | E31: =E25 -> 0 | G31: =G25 -> 0 | H31: =H25 -> 0 | I31: =I25 -> 0 | J31: =J25 -> 0 | M31: =N25 -> 0 | N31: =IFERROR((ROUND(M31/M32,2)),0) -> 0
L32: TOTAL: | M32: =SUM(M30:M31) -> 0 | N32: =SUM(N30:N31) -> 0

Sheet Datos (ESP AISLAMIENTO) (IMP) (hidden)
A1: ANEXO 2: ESPESORES DE AISLAMIENTO
A3: A) Superficies de tuberías (hasta 1000 mm de diámetro)
A5: A.1) Superficies de tuberías (hasta 1000 mm de diámetro) aisladas para Conservación de Calor
B7: Valor promedio de Perdidas Instalación actual en W/m² | E7: =IF('Datos (ESP AISLAMIENTO)'!E7=0,0,'Datos (ESP AISLAMIENTO)'!E7) -> 0
C9: TABLA 2.A.1
C10: Rango de Pérdidas Cálculadas Q (W/m²) | D10: Ponderación por rangos (%) | E10: Ponderación de la instalación Estudiada (%)
B11: =E11 ->  | C11: Q≤90 | D11: 1 | E11: =IF((AND($E$7<=90,$E$7<>0)),"X"," ") -> 
B12: =E12 ->  | C12: 90<Q≤100 | D12: =D11-0.05 -> 0.95 | E12: =IF((AND($E$7>90,$E$7<=100)),"X"," ") -> 
C13: 100<Q≤120 | D13: =D12-0.05 -> 0.9 | E13: =IF((AND($E$7>100,$E$7<=120)),"X"," ") -> 
C14: 120<Q≤140 | D14: 0.85 | E14: =IF((AND($E$7>120,$E$7<=140)),"X"," ") -> 
C15: 140<Q≤160 | D15: 0.8 | E15: =IF((AND($E$7>140,$E$7<=160)),"X"," ") -> 
C16: 160<Q≤180 | D16: 0.75 | E16: =IF((AND($E$7>160,$E$7<=180)),"X"," ") -> 
C17: 180<Q≤200 | D17: 0.7 | E17: =IF((AND($E$7>180,$E$7<=200)),"X"," ") -> 
C18: 200<Q≤220 | D18: 0.65 | E18: =IF((AND($E$7>200,$E$7<=220)),"X"," ") -> 
C19: 220<Q≤240 | D19: 0.6 | E19: =IF((AND($E$7>220,$E$7<=240)),"X"," ") -> 
C20: 240<Q≤260 | D20: 0.55 | E20: =IF((AND($E$7>240,$E$7<=260)),"X"," ") -> 
C21: 260<Q≤280 | D21: 0.5 | E21: =IF((AND($E$7>260,$E$7<=280)),"X"," ") -> 
C22: 280<Q≤300 | D22: 0.45 | E22: =IF((AND($E$7>280,$E$7<=300)),"X"," ") -> 
C23: 300<Q≤320 | D23: 0.4 | E23: =IF((AND($E$7>300,$E$7<=320)),"X"," ") -> 
C24: 320<Q≤340 | D24: 0.35 | E24: =IF((AND($E$7>320,$E$7<=340)),"X"," ") -> 
C25: 340<Q≤360 | D25: 0.3 | E25: =IF((AND($E$7>340,$E$7<=360)),"X"," ") -> 
C26: 360<Q≤380 | D26: 0.25 | E26: =IF((AND($E$7>360,$E$7<=380)),"X"," ") -> 
C27: 380<Q≤400 | D27: 0.2 | E27: =IF((AND($E$7>380,$E$7<=400)),"X"," ") -> 
C28: 400<Q | D28: 0.15 | E28: =IF($E$7>400,"X"," ") -> 
A50: A.2) Superficies de tuberías (hasta 1000 mm de diámetro) aisladas para Protección Personal
B52: Valor promedio de Perdidas Instalación actual en W/m² | E52: =IF('Datos (ESP AISLAMIENTO)'!E32=0,0,'Datos (ESP AISLAMIENTO)'!E32) -> 0
C54: TABLA 2.A.2
C55: Rango de Pérdidas Cálculadas Q (W/m²) | D55: Ponderación por rangos (%) | E55: Ponderación de la instalación Estudiada (%)
B56: =E56 ->  | C56: Q≤90 | D56: 1 | E56: =IF((AND($E$52<=90,$E$52<>0)),"X"," ") -> 
B57: =E57 ->  | C57: 90<Q≤100 | D57: =D56-0.05 -> 0.95 | E57: =IF((AND($E$52>90,$E$52<=100)),"X"," ") -> 
C58: 100<Q≤120 | D58: =D57-0.05 -> 0.9 | E58: =IF((AND($E$52>100,$E$52<=120)),"X"," ") -> 
C59: 120<Q≤140 | D59: 0.85 | E59: =IF((AND($E$52>120,$E$52<=140)),"X"," ") -> 
C60: 140<Q≤160 | D60: 0.8 | E60: =IF((AND($E$52>140,$E$52<=160)),"X"," ") -> 
C61: 160<Q≤180 | D61: 0.75 | E61: =IF((AND($E$52>160,$E$52<=180)),"X"," ") -> 
C62: 180<Q≤200 | D62: 0.7 | E62: =IF((AND($E$52>180,$E$52<=200)),"X"," ") -> 
C63: 200<Q≤220 | D63: 0.65 | E63: =IF((AND($E$52>200,$E$52<=220)),"X"," ") -> 
C64: 220<Q≤240 | D64: 0.6 | E64: =IF((AND($E$52>220,$E$52<=240)),"X"," ") -> 
C65: 240<Q≤260 | D65: 0.55 | E65: =IF((AND($E$52>240,$E$52<=260)),"X"," ") -> 
C66: 260<Q≤280 | D66: 0.5 | E66: =IF((AND($E$52>260,$E$52<=280)),"X"," ") -> 
C67: 280<Q≤300 | D67: 0.45 | E67: =IF((AND($E$52>280,$E$52<=300)),"X"," ") -> 
C68: 300<Q≤320 | D68: 0.4 | E68: =IF((AND($E$52>300,$E$52<=320)),"X"," ") -> 
C69: 320<Q≤340 | D69: 0.35 | E69: =IF((AND($E$52>320,$E$52<=340)),"X"," ") -> 
C70: 340<Q≤360 | D70: 0.3 | E70: =IF((AND($E$52>340,$E$52<=360)),"X"," ") -> 
C71: 360<Q≤380 | D71: 0.25 | E71: =IF((AND($E$52>360,$E$52<=380)),"X"," ") -> 
C72: 380<Q≤400 | D72: 0.2 | E72: =IF((AND($E$52>380,$E$52<=400)),"X"," ") -> 
C73: 400<Q | D73: 0.15 | E73: =IF($E$52>400,"X"," ") -> 
A75: A.3) Pérdidas promedio en Superficies de tuberías (hasta 1000 mm de diámetro)
B77: Tipo | C77: Peso CC ó PP sobre superfices aisladas (%) | D77: Valoración SUPERFICIES DE TUBERIAS | E77: Ponderación de la superficie estudiada (%)
B78: TOTAL TUBERIAS CALIENTES AISLADAS PARA CONSERVACION DE CALOR | C78: =IFERROR(('Datos (SUP AISLADA)'!F30/'Datos (SUP AISLADA)'!H30),0) -> 0 | D78: =IFERROR((VLOOKUP("X",B11:D28,3,FALSE)),0) -> 0 | E78: =D78*C78 -> 0
B79: TOTAL TUBERIAS CALIENTES AISLADAS PARA PROTECCION PERSONAL | C79: =IFERROR(('Datos (SUP AISLADA)'!G30/'Datos (SUP AISLADA)'!H30),0) -> 0 | D79: =IFERROR((VLOOKUP("X",B56:D73,3,FALSE)),0) -> 0 | E79: =D79*C79 -> 0
D80: TOTAL | E80: =SUM(E78:E79) -> 0
A90: B) Superficies planas (desde 1000 mm de diámetro) y equipos
A92: B.1) Superficies planas (desde 1000 mm de diámetro) y equipos aisladas para Conservación de Calor
B94: Valor promedio de Perdidas Instalación actual en W/m² | E94: =IF('Datos (ESP AISLAMIENTO)'!E66=0,0,'Datos (ESP AISLAMIENTO)'!E66) -> 0
C96: TABLA 2.B.1
C98: Rango de Pérdidas Cálculadas Q (W/m²) | D98: Ponderación por rangos (%) | E98: Ponderación de la instalación Estudiada (%)
B99: =E99 ->  | C99: Q≤90 | D99: 1 | E99: =IF((AND($E$94<=90,$E$94<>0)),"X"," ") -> 
B100: =E100 ->  | C100: 90<Q≤100 | D100: =D99-0.05 -> 0.95 | E100: =IF((AND($E$94>90,$E$94<=100)),"X"," ") -> 
C101: 100<Q≤120 | D101: =D100-0.05 -> 0.9 | E101: =IF((AND($E$94>100,$E$94<=120)),"X"," ") -> 
C102: 120<Q≤140 | D102: 0.85 | E102: =IF((AND($E$94>120,$E$94<=140)),"X"," ") -> 
C103: 140<Q≤160 | D103: 0.8 | E103: =IF((AND($E$94>140,$E$94<=160)),"X"," ") -> 
C104: 160<Q≤180 | D104: 0.75 | E104: =IF((AND($E$94>160,$E$94<=180)),"X"," ") -> 
C105: 180<Q≤200 | D105: 0.7 | E105: =IF((AND($E$94>180,$E$94<=200)),"X"," ") -> 
C106: 200<Q≤220 | D106: 0.65 | E106: =IF((AND($E$94>200,$E$94<=220)),"X"," ") -> 
C107: 220<Q≤240 | D107: 0.6 | E107: =IF((AND($E$94>220,$E$94<=240)),"X"," ") -> 
C108: 240<Q≤260 | D108: 0.55 | E108: =IF((AND($E$94>240,$E$94<=260)),"X"," ") -> 
C109: 260<Q≤280 | D109: 0.5 | E109: =IF((AND($E$94>260,$E$94<=280)),"X"," ") -> 
C110: 280<Q≤300 | D110: 0.45 | E110: =IF((AND($E$94>280,$E$94<=300)),"X"," ") -> 
C111: 300<Q≤320 | D111: 0.4 | E111: =IF((AND($E$94>300,$E$94<=320)),"X"," ") -> 
C112: 320<Q≤340 | D112: 0.35 | E112: =IF((AND($E$94>320,$E$94<=340)),"X"," ") -> 
C113: 340<Q≤360 | D113: 0.3 | E113: =IF((AND($E$94>340,$E$94<=360)),"X"," ") -> 
C114: 360<Q≤380 | D114: 0.25 | E114: =IF((AND($E$94>360,$E$94<=380)),"X"," ") -> 
C115: 380<Q≤400 | D115: 0.2 | E115: =IF((AND($E$94>380,$E$94<=400)),"X"," ") -> 
C116: 400<Q | D116: 0.15 | E116: =IF($E$94>400,"X"," ") -> 
A138: B.2) Superficies planas (desde 1000 mm de diámetro) y equipos aisladas para Protección Personal
B140: Valor promedio de Perdidas Instalación actual en W/m² | E140: =IF('Datos (ESP AISLAMIENTO)'!E92=0,0,'Datos (ESP AISLAMIENTO)'!E92) -> 0
C142: TABLA 2.B.2
C144: Rango de Pérdidas Cálculadas Q (W/m²) | D144: Ponderación por rangos (%) | E144: Ponderación de la instalación Estudiada (%)
B145: =E145 ->  | C145: Q≤90 | D145: 1 | E145: =IF((AND($E$140<=90,$E$140<>0)),"X"," ") -> 
B146: =E146 ->  | C146: 90<Q≤100 | D146: =D145-0.05 -> 0.95 | E146: =IF((AND($E$140>90,$E$140<=100)),"X"," ") -> 
C147: 100<Q≤120 | D147: =D146-0.05 -> 0.9 | E147: =IF((AND($E$140>100,$E$140<=120)),"X"," ") -> 
C148: 120<Q≤140 | D148: 0.85 | E148: =IF((AND($E$140>120,$E$140<=140)),"X"," ") -> 
C149: 140<Q≤160 | D149: 0.8 | E149: =IF((AND($E$140>140,$E$140<=160)),"X"," ") -> 
C150: 160<Q≤180 | D150: 0.75 | E150: =IF((AND($E$140>160,$E$140<=180)),"X"," ") -> 
C151: 180<Q≤200 | D151: 0.7 | E151: =IF((AND($E$140>180,$E$140<=200)),"X"," ") -> 
C152: 200<Q≤220 | D152: 0.65 | E152: =IF((AND($E$140>200,$E$140<=220)),"X"," ") -> 
C153: 220<Q≤240 | D153: 0.6 | E153: =IF((AND($E$140>220,$E$140<=240)),"X"," ") -> 
C154: 240<Q≤260 | D154: 0.55 | E154: =IF((AND($E$140>240,$E$140<=260)),"X"," ") -> 
C155: 260<Q≤280 | D155: 0.5 | E155: =IF((AND($E$140>260,$E$140<=280)),"X"," ") -> 
C156: 280<Q≤300 | D156: 0.45 | E156: =IF((AND($E$140>280,$E$140<=300)),"X"," ") -> 
C157: 300<Q≤320 | D157: 0.4 | E157: =IF((AND($E$140>300,$E$140<=320)),"X"," ") -> 
C158: 320<Q≤340 | D158: 0.35 | E158: =IF((AND($E$140>320,$E$140<=340)),"X"," ") -> 
C159: 340<Q≤360 | D159: 0.3 | E159: =IF((AND($E$140>340,$E$140<=360)),"X"," ") -> 
C160: 360<Q≤380 | D160: 0.25 | E160: =IF((AND($E$140>360,$E$140<=380)),"X"," ") -> 
C161: 380<Q≤400 | D161: 0.2 | E161: =IF((AND($E$140>380,$E$140<=400)),"X"," ") -> 
C162: 400<Q | D162: 0.15 | E162: =IF($E$140>400,"X"," ") -> 
A164: B.3) Pérdidas promedio en Superficies planas (desde 1000 mm de diámetro) y equipos
B166: Tipo | C166: Peso CC ó PP sobre superfices aisladas (%) | D166: Valoración SUPERFICIES DE TUBERIAS | E166: Ponderación de la superficie estudiada (%)
B167: TOTAL SUPERFICIES PLANAS CALIENTES AISLADAS PARA CONSERVACION DE CALOR | C167: =IFERROR(('Datos (SUP AISLADA)'!F31/'Datos (SUP AISLADA)'!H31),0) -> 0 | D167: =IFERROR((VLOOKUP("X",B99:D116,3,FALSE)),0) -> 0 | E167: =D167*C167 -> 0
B168: TOTAL SUPERFICIES PLANAS CALIENTES AISLADAS PARA PROTECCION PERSONAL | C168: =IFERROR(('Datos (SUP AISLADA)'!G31/'Datos (SUP AISLADA)'!H31),0) -> 0 | D168: =IFERROR((VLOOKUP("X",B145:D162,3,FALSE)),0) -> 0 | E168: =D168*C168 -> 0
D169: TOTAL | E169: =SUM(E167:E168) -> 0

Sheet Datos (PPI AISLAMIENTO) (IMP) (hidden)
A1: ANEXO 3: Registro de Puntos de Inspección en Aislamiento
A3: A) Registro de Puntos de Inspección de tuberías aisladas
C5: PUNTOS DE INSPECCIÓN | D5: CRITERIOS DE ACEPTACIÓN | E5: PUNTO DE LA GUIA | F5: MUESTRA INSTALACION | G5: TIPO DE CONTROL | L5: VALORACIÓN INSPECTOR | M5: OBSERVACIONES INSPECTOR | N5: Peso Parcial (%) de Punto de Inspección | O5: Ponderación puntos (%)
G6: V | H6: D | I6: P | J6: C | K6: T
B7: Soporte del aislamiento | C7: Colocación de los distanciadores, si procede (altura y separación) | D7: Superficies horizontales: 950 mm ± 30 mm; Superficies Verticales: mínimo cada 3 metros. Según Guía | E7: 3.3.1 4.3.1 | F7: 0.05 | G7: =IF(Tabla28[[#This Row],[V]]<>"X"," ",Tabla28[[#This Row],[V]]) ->  | H7: =IF(Tabla28[[#This Row],[D]]<>"X"," ",Tabla28[[#This Row],[D]]) ->  | I7: =IF(Tabla28[[#This Row],[P]]<>"X"," ",Tabla28[[#This Row],[P]]) ->  | J7: =IF(Tabla28[[#This Row],[C]]<>"X"," ",Tabla28[[#This Row],[Columna1]]) ->  | K7: =IF(Tabla28[[#This Row],[T]]<>"X"," ",Tabla28[[#This Row],[T]]) ->  | L7: =IF(Tabla28[[#This Row],[VALORACIÓN INSPECTOR]]=" "," ",Tabla28[[#This Row],[VALORACIÓN INSPECTOR]]) -> 0 | M7: =IF(Tabla28[[#This Row],[OBSERVACIONES INSPECTOR]]=0," ",Tabla28[[#This Row],[OBSERVACIONES INSPECTOR]]) ->  | N7: 0.03 | O7: =ROUND($L7*$N7,3) -> 0
C8: Rotura de puente térmico | D8: Según Guía | E8: 3.3.1 4.3.1 | F8: 0.05 | G8: =IF(Tabla28[[#This Row],[V]]<>"X"," ",Tabla28[[#This Row],[V]]) ->  | H8: =IF(Tabla28[[#This Row],[D]]<>"X"," ",Tabla28[[#This Row],[D]]) ->  | I8: =IF(Tabla28[[#This Row],[P]]<>"X"," ",Tabla28[[#This Row],[P]]) ->  | J8: =IF(Tabla28[[#This Row],[C]]<>"X"," ",Tabla28[[#This Row],[Columna1]]) ->  | K8: =IF(Tabla28[[#This Row],[T]]<>"X"," ",Tabla28[[#This Row],[T]]) ->  | L8: =IF(Tabla28[[#This Row],[VALORACIÓN INSPECTOR]]=" "," ",Tabla28[[#This Row],[VALORACIÓN INSPECTOR]]) -> 0 | M8: =IF(Tabla28[[#This Row],[OBSERVACIONES INSPECTOR]]=0," ",Tabla28[[#This Row],[OBSERVACIONES INSPECTOR]]) ->  | N8: 0.03 | O8: =ROUND($L8*$N8,3) -> 0
B9: Material aislante | C9: Tipo y espesor de aislamiento instalado | D9: Corresponde con las especificaciones/ guía | E9: 3.1 4.3.2 | F9: 0.2 | G9: =IF(Tabla28[[#This Row],[V]]<>"X"," ",Tabla28[[#This Row],[V]]) ->  | H9: =IF(Tabla28[[#This Row],[D]]<>"X"," ",Tabla28[[#This Row],[D]]) ->  | I9: =IF(Tabla28[[#This Row],[P]]<>"X"," ",Tabla28[[#This Row],[P]]) ->  | J9: =IF(Tabla28[[#This Row],[C]]<>"X"," ",Tabla28[[#This Row],[Columna1]]) ->  | K9: =IF(Tabla28[[#This Row],[T]]<>"X"," ",Tabla28[[#This Row],[T]]) ->  | L9: =IF(Tabla28[[#This Row],[VALORACIÓN INSPECTOR]]=" "," ",Tabla28[[#This Row],[VALORACIÓN INSPECTOR]]) -> 0 | M9: =IF(Tabla28[[#This Row],[OBSERVACIONES INSPECTOR]]=0," ",Tabla28[[#This Row],[OBSERVACIONES INSPECTOR]]) ->  | N9: =0.5*(0.42-$N$10) -> 0.21 | O9: =ROUND($L9*$N9,3) -> 0
C10: Estado del aislamiento instalado | D10: Realización de: -Inspecciones visuales -Inspecciones Dimensionales -Inpecciones mediante informacion de planos -Inspecciones mediante informacion de certicados -Inspecciones mediante termografías | E10: General | F10: 0.05 | G10: =IF(Tabla28[[#This Row],[V]]<>"X"," ",Tabla28[[#This Row],[V]]) ->  | H10: =IF(Tabla28[[#This Row],[D]]<>"X"," ",Tabla28[[#This Row],[D]]) ->  | I10: =IF(Tabla28[[#This Row],[P]]<>"X"," ",Tabla28[[#This Row],[P]]) ->  | J10: =IF(Tabla28[[#This Row],[C]]<>"X"," ",Tabla28[[#This Row],[Columna1]]) ->  | K10: =IF(Tabla28[[#This Row],[T]]<>"X"," ",Tabla28[[#This Row],[T]]) ->  | L10: =IF(Tabla28[[#This Row],[VALORACIÓN INSPECTOR]]=" "," ",Tabla28[[#This Row],[VALORACIÓN INSPECTOR]]) -> 0 | M10: =IF(Tabla28[[#This Row],[OBSERVACIONES INSPECTOR]]=0," ",Tabla28[[#This Row],[OBSERVACIONES INSPECTOR]]) ->  | N10: =+U11 -> 0 | O10: =ROUND($L10*$N10,3) -> 0
C11: Adecuada sujección | D11: Según especificaciones | E11: 3.1 4.3.2 | F11: 0.05 | G11: =IF(Tabla28[[#This Row],[V]]<>"X"," ",Tabla28[[#This Row],[V]]) ->  | H11: =IF(Tabla28[[#This Row],[D]]<>"X"," ",Tabla28[[#This Row],[D]]) ->  | I11: =IF(Tabla28[[#This Row],[P]]<>"X"," ",Tabla28[[#This Row],[P]]) ->  | J11: =IF(Tabla28[[#This Row],[C]]<>"X"," ",Tabla28[[#This Row],[Columna1]]) ->  | K11: =IF(Tabla28[[#This Row],[T]]<>"X"," ",Tabla28[[#This Row],[T]]) ->  | L11: =IF(Tabla28[[#This Row],[VALORACIÓN INSPECTOR]]=" "," ",Tabla28[[#This Row],[VALORACIÓN INSPECTOR]]) -> 0 | M11: =IF(Tabla28[[#This Row],[OBSERVACIONES INSPECTOR]]=0," ",Tabla28[[#This Row],[OBSERVACIONES INSPECTOR]]) ->  | N11: =0.25*(0.42-$N$10) -> 0.105 | O11: =ROUND($L11*$N11,3) -> 0
C12: Juntas a tope y contrapeadas (multicapa) | D12: Según especificaciones | E12: 3.1 4.3.2 | F12: 0.05 | G12: =IF(Tabla28[[#This Row],[V]]<>"X"," ",Tabla28[[#This Row],[V]]) ->  | H12: =IF(Tabla28[[#This Row],[D]]<>"X"," ",Tabla28[[#This Row],[D]]) ->  | I12: =IF(Tabla28[[#This Row],[P]]<>"X"," ",Tabla28[[#This Row],[P]]) ->  | J12: =IF(Tabla28[[#This Row],[C]]<>"X"," ",Tabla28[[#This Row],[Columna1]]) ->  | K12: =IF(Tabla28[[#This Row],[T]]<>"X"," ",Tabla28[[#This Row],[T]]) ->  | L12: =IF(Tabla28[[#This Row],[VALORACIÓN INSPECTOR]]=" "," ",Tabla28[[#This Row],[VALORACIÓN INSPECTOR]]) -> 0 | M12: =IF(Tabla28[[#This Row],[OBSERVACIONES INSPECTOR]]=0," ",Tabla28[[#This Row],[OBSERVACIONES INSPECTOR]]) ->  | N12: =0.25*(0.42-$N$10) -> 0.105 | O12: 0
B13: Protección metálica | C13: Tipo y espesor del recubrimiento instalado | D13: Corresponde con las especificaciones/ guía | E13: 3.2.1 4.3.3 | F13: 0.2 | G13: =IF(Tabla28[[#This Row],[V]]<>"X"," ",Tabla28[[#This Row],[V]]) ->  | H13: =IF(Tabla28[[#This Row],[D]]<>"X"," ",Tabla28[[#This Row],[D]]) ->  | I13: =IF(Tabla28[[#This Row],[P]]<>"X"," ",Tabla28[[#This Row],[P]]) ->  | J13: =IF(Tabla28[[#This Row],[C]]<>"X"," ",Tabla28[[#This Row],[Columna1]]) ->  | K13: =IF(Tabla28[[#This Row],[T]]<>"X"," ",Tabla28[[#This Row],[T]]) ->  | L13: =IF(Tabla28[[#This Row],[VALORACIÓN INSPECTOR]]=" "," ",Tabla28[[#This Row],[VALORACIÓN INSPECTOR]]) -> 0 | M13: =IF(Tabla28[[#This Row],[OBSERVACIONES INSPECTOR]]=0," ",Tabla28[[#This Row],[OBSERVACIONES INSPECTOR]]) ->  | N13: 0.06 | O13: 0
C14: Ejecución de bordones y solapes | D14: Según Guía | E14: 3.2.1 4.3.3 | F14: 0.05 | G14: =IF(Tabla28[[#This Row],[V]]<>"X"," ",Tabla28[[#This Row],[V]]) ->  | H14: =IF(Tabla28[[#This Row],[D]]<>"X"," ",Tabla28[[#This Row],[D]]) ->  | I14: =IF(Tabla28[[#This Row],[P]]<>"X"," ",Tabla28[[#This Row],[P]]) ->  | J14: =IF(Tabla28[[#This Row],[C]]<>"X"," ",Tabla28[[#This Row],[Columna1]]) ->  | K14: =IF(Tabla28[[#This Row],[T]]<>"X"," ",Tabla28[[#This Row],[T]]) ->  | L14: =IF(Tabla28[[#This Row],[VALORACIÓN INSPECTOR]]=" "," ",Tabla28[[#This Row],[VALORACIÓN INSPECTOR]]) -> 0 | M14: =IF(Tabla28[[#This Row],[OBSERVACIONES INSPECTOR]]=0," ",Tabla28[[#This Row],[OBSERVACIONES INSPECTOR]]) ->  | N14: 0.05 | O14: 0
C15: Fijación por tornillos / remaches POP | D15: Aprox. cada 250 mm. Según Guía | E15: 4.3.3 | F15: 0.05 | G15: =IF(Tabla28[[#This Row],[V]]<>"X"," ",Tabla28[[#This Row],[V]]) ->  | H15: =IF(Tabla28[[#This Row],[D]]<>"X"," ",Tabla28[[#This Row],[D]]) ->  | I15: =IF(Tabla28[[#This Row],[P]]<>"X"," ",Tabla28[[#This Row],[P]]) ->  | J15: =IF(Tabla28[[#This Row],[C]]<>"X"," ",Tabla28[[#This Row],[Columna1]]) ->  | K15: =IF(Tabla28[[#This Row],[T]]<>"X"," ",Tabla28[[#This Row],[T]]) ->  | L15: =IF(Tabla28[[#This Row],[VALORACIÓN INSPECTOR]]=" "," ",Tabla28[[#This Row],[VALORACIÓN INSPECTOR]]) -> 0 | M15: =IF(Tabla28[[#This Row],[OBSERVACIONES INSPECTOR]]=0," ",Tabla28[[#This Row],[OBSERVACIONES INSPECTOR]]) ->  | N15: 0.02 | O15: 0
C16: Superficie aislada (bridas, válvulas,..) | D16: Según especificaciones | E16: 3,1 4.3.2 | F16: 1 | G16: =IF(Tabla28[[#This Row],[V]]<>"X"," ",Tabla28[[#This Row],[V]]) ->  | H16: =IF(Tabla28[[#This Row],[D]]<>"X"," ",Tabla28[[#This Row],[D]]) ->  | I16: =IF(Tabla28[[#This Row],[P]]<>"X"," ",Tabla28[[#This Row],[P]]) ->  | J16: =IF(Tabla28[[#This Row],[C]]<>"X"," ",Tabla28[[#This Row],[Columna1]]) ->  | K16: =IF(Tabla28[[#This Row],[T]]<>"X"," ",Tabla28[[#This Row],[T]]) ->  | L16: =IF(Tabla28[[#This Row],[VALORACIÓN INSPECTOR]]=" "," ",Tabla28[[#This Row],[VALORACIÓN INSPECTOR]]) -> 0 | M16: =IF(Tabla28[[#This Row],[OBSERVACIONES INSPECTOR]]=0," ",Tabla28[[#This Row],[OBSERVACIONES INSPECTOR]]) ->  | N16: 0.07 | O16: 0
B17: Montaje | C17: Correcta instalación a favor de agua | D17: Según Guía | E17: 4.3.3 | F17: 0.05 | G17: =IF(Tabla28[[#This Row],[V]]<>"X"," ",Tabla28[[#This Row],[V]]) ->  | H17: =IF(Tabla28[[#This Row],[D]]<>"X"," ",Tabla28[[#This Row],[D]]) ->  | I17: =IF(Tabla28[[#This Row],[P]]<>"X"," ",Tabla28[[#This Row],[P]]) ->  | J17: =IF(Tabla28[[#This Row],[C]]<>"X"," ",Tabla28[[#This Row],[Columna1]]) ->  | K17: =IF(Tabla28[[#This Row],[T]]<>"X"," ",Tabla28[[#This Row],[T]]) ->  | L17: =IF(Tabla28[[#This Row],[VALORACIÓN INSPECTOR]]=" "," ",Tabla28[[#This Row],[VALORACIÓN INSPECTOR]]) -> 0 | M17: =IF(Tabla28[[#This Row],[OBSERVACIONES INSPECTOR]]=0," ",Tabla28[[#This Row],[OBSERVACIONES INSPECTOR]]) ->  | N17: 0.06 | O17: 0
C18: Correcto sellado (donde haya riesgo de entrada de agua de lluvía) | D18: Según Guía | E18: 4.3.3 | F18: 0.05 | G18: =IF(Tabla28[[#This Row],[V]]<>"X"," ",Tabla28[[#This Row],[V]]) ->  | H18: =IF(Tabla28[[#This Row],[D]]<>"X"," ",Tabla28[[#This Row],[D]]) ->  | I18: =IF(Tabla28[[#This Row],[P]]<>"X"," ",Tabla28[[#This Row],[P]]) ->  | J18: =IF(Tabla28[[#This Row],[C]]<>"X"," ",Tabla28[[#This Row],[Columna1]]) ->  | K18: =IF(Tabla28[[#This Row],[T]]<>"X"," ",Tabla28[[#This Row],[T]]) ->  | L18: =IF(Tabla28[[#This Row],[VALORACIÓN INSPECTOR]]=" "," ",Tabla28[[#This Row],[VALORACIÓN INSPECTOR]]) -> 0 | M18: =IF(Tabla28[[#This Row],[OBSERVACIONES INSPECTOR]]=0," ",Tabla28[[#This Row],[OBSERVACIONES INSPECTOR]]) ->  | N18: 0.06 | O18: 0
C19: Uso de tapas en finales de aislamiento (cajas desmontables, etc) | D19: Según Guía | E19: 4.11 | F19: 0.05 | G19: =IF(Tabla28[[#This Row],[V]]<>"X"," ",Tabla28[[#This Row],[V]]) ->  | H19: =IF(Tabla28[[#This Row],[D]]<>"X"," ",Tabla28[[#This Row],[D]]) ->  | I19: =IF(Tabla28[[#This Row],[P]]<>"X"," ",Tabla28[[#This Row],[P]]) ->  | J19: =IF(Tabla28[[#This Row],[C]]<>"X"," ",Tabla28[[#This Row],[Columna1]]) ->  | K19: =IF(Tabla28[[#This Row],[T]]<>"X"," ",Tabla28[[#This Row],[T]]) ->  | L19: =IF(Tabla28[[#This Row],[VALORACIÓN INSPECTOR]]=" "," ",Tabla28[[#This Row],[VALORACIÓN INSPECTOR]]) -> 0 | M19: =IF(Tabla28[[#This Row],[OBSERVACIONES INSPECTOR]]=0," ",Tabla28[[#This Row],[OBSERVACIONES INSPECTOR]]) ->  | N19: 0.04 | O19: 0
C20: Correcto tratamiento salidas de traceado. | D20: Según Guía | E20: 4.11 | F20: 0.05 | G20: =IF(Tabla28[[#This Row],[V]]<>"X"," ",Tabla28[[#This Row],[V]]) ->  | H20: =IF(Tabla28[[#This Row],[D]]<>"X"," ",Tabla28[[#This Row],[D]]) ->  | I20: =IF(Tabla28[[#This Row],[P]]<>"X"," ",Tabla28[[#This Row],[P]]) ->  | J20: =IF(Tabla28[[#This Row],[C]]<>"X"," ",Tabla28[[#This Row],[Columna1]]) ->  | K20: =IF(Tabla28[[#This Row],[T]]<>"X"," ",Tabla28[[#This Row],[T]]) ->  | L20: =IF(Tabla28[[#This Row],[VALORACIÓN INSPECTOR]]=" "," ",Tabla28[[#This Row],[VALORACIÓN INSPECTOR]]) -> 0 | M20: =IF(Tabla28[[#This Row],[OBSERVACIONES INSPECTOR]]=0," ",Tabla28[[#This Row],[OBSERVACIONES INSPECTOR]]) ->  | N20: 0.02 | O20: 0
C21: Tratamiento de puentes térmicos (tapas, instrumentos, etc) | D21: Según Guía | E21: 4.11 | F21: 0.05 | G21: =IF(Tabla28[[#This Row],[V]]<>"X"," ",Tabla28[[#This Row],[V]]) ->  | H21: =IF(Tabla28[[#This Row],[D]]<>"X"," ",Tabla28[[#This Row],[D]]) ->  | I21: =IF(Tabla28[[#This Row],[P]]<>"X"," ",Tabla28[[#This Row],[P]]) ->  | J21: =IF(Tabla28[[#This Row],[C]]<>"X"," ",Tabla28[[#This Row],[Columna1]]) ->  | K21: =IF(Tabla28[[#This Row],[T]]<>"X"," ",Tabla28[[#This Row],[T]]) ->  | L21: =IF(Tabla28[[#This Row],[VALORACIÓN INSPECTOR]]=" "," ",Tabla28[[#This Row],[VALORACIÓN INSPECTOR]]) -> 0 | M21: =IF(Tabla28[[#This Row],[OBSERVACIONES INSPECTOR]]=0," ",Tabla28[[#This Row],[OBSERVACIONES INSPECTOR]]) ->  | N21: 0.04 | O21: 0
B22: Acabado final | C22: No presenta golpes, ni aberturas, ni daños. | D22: Inspección general | E22: Guía | F22: 0.05 | G22: =IF(Tabla28[[#This Row],[V]]<>"X"," ",Tabla28[[#This Row],[V]]) ->  | H22: =IF(Tabla28[[#This Row],[D]]<>"X"," ",Tabla28[[#This Row],[D]]) ->  | I22: =IF(Tabla28[[#This Row],[P]]<>"X"," ",Tabla28[[#This Row],[P]]) ->  | J22: =IF(Tabla28[[#This Row],[C]]<>"X"," ",Tabla28[[#This Row],[Columna1]]) ->  | K22: =IF(Tabla28[[#This Row],[T]]<>"X"," ",Tabla28[[#This Row],[T]]) ->  | L22: =IF(Tabla28[[#This Row],[VALORACIÓN INSPECTOR]]=" "," ",Tabla28[[#This Row],[VALORACIÓN INSPECTOR]]) -> 0 | M22: =IF(Tabla28[[#This Row],[OBSERVACIONES INSPECTOR]]=0," ",Tabla28[[#This Row],[OBSERVACIONES INSPECTOR]]) ->  | N22: 0.1 | O22: 0
C23: • V= Visual • D= Dimensional • P= Información de Planos • C= Información de Certificados • T= Termografía | N23: TOTAL PPI | O23: =SUM($O7:$O22) -> 0
A25: B) Registro de Puntos de Inspección en Aislamiento de equipos aislados
C27: PUNTOS DE INSPECCIÓN | D27: CRITERIOS DE ACEPTACIÓN | E27: PUNTO DE LA GUIA | F27: MUESTRA INSTALACION | G27: TIPO DE CONTROL | L27: VALORACIÓN INSPECTOR | M27: OBSERVACIONES INSPECTOR | N27: Peso Parcial (%) de Punto de Inspección | O27: Ponderación puntos (%)
G28: V | H28: D | I28: P | J28: C | K28: T
B29: Soporte del aislamiento | C29: Colocación de los distanciadores, si procede (altura y separación) | D29: Superficies horizontales: 950 mm ± 30 mm; Superficies Verticales: mínimo cada 3 metros. Según Guía | E29: 3.3.1 4.3.1 | F29: 0.05 | G29: =IF(Tabla29[[#This Row],[V]]<>"X"," ",Tabla29[[#This Row],[V]]) ->  | H29: =IF(Tabla29[[#This Row],[D]]<>"X"," ",Tabla29[[#This Row],[D]]) ->  | I29: =IF(Tabla29[[#This Row],[P]]<>"X"," ",Tabla29[[#This Row],[P]]) ->  | J29: =IF(Tabla29[[#This Row],[C]]<>"X"," ",Tabla29[[#This Row],[C]]) ->  | K29: =IF(Tabla29[[#This Row],[T]]<>"X"," ",Tabla29[[#This Row],[T]]) ->  | L29: =IF(Tabla29[[#This Row],[VALORACIÓN INSPECTOR]]=" "," ",Tabla29[[#This Row],[VALORACIÓN INSPECTOR]]) -> 0 | M29: =IF(Tabla29[[#This Row],[OBSERVACIONES INSPECTOR]]=0," ",Tabla29[[#This Row],[OBSERVACIONES INSPECTOR]]) ->  | N29: 0.03 | O29: =ROUND($L29*$N29,3) -> 0
C30: Rotura de puente térmico | D30: Según Guía | E30: 3.3.1 4.3.1 | F30: 0.05 | G30: =IF(Tabla29[[#This Row],[V]]<>"X"," ",Tabla29[[#This Row],[V]]) ->  | H30: =IF(Tabla29[[#This Row],[D]]<>"X"," ",Tabla29[[#This Row],[D]]) ->  | I30: =IF(Tabla29[[#This Row],[P]]<>"X"," ",Tabla29[[#This Row],[P]]) ->  | J30: =IF(Tabla29[[#This Row],[C]]<>"X"," ",Tabla29[[#This Row],[C]]) ->  | K30: =IF(Tabla29[[#This Row],[T]]<>"X"," ",Tabla29[[#This Row],[T]]) ->  | L30: =IF(Tabla29[[#This Row],[VALORACIÓN INSPECTOR]]=" "," ",Tabla29[[#This Row],[VALORACIÓN INSPECTOR]]) -> 0 | M30: =IF(Tabla29[[#This Row],[OBSERVACIONES INSPECTOR]]=0," ",Tabla29[[#This Row],[OBSERVACIONES INSPECTOR]]) ->  | N30: 0.03 | O30: =ROUND($L30*$N30,3) -> 0
B31: Material aislante | C31: Tipo y espesor de aislamiento instalado | D31: Corresponde con las especificaciones/ guía | E31: 3,1 4.3.2 | F31: 0.2 | G31: =IF(Tabla29[[#This Row],[V]]<>"X"," ",Tabla29[[#This Row],[V]]) ->  | H31: =IF(Tabla29[[#This Row],[D]]<>"X"," ",Tabla29[[#This Row],[D]]) ->  | I31: =IF(Tabla29[[#This Row],[P]]<>"X"," ",Tabla29[[#This Row],[P]]) ->  | J31: =IF(Tabla29[[#This Row],[C]]<>"X"," ",Tabla29[[#This Row],[C]]) ->  | K31: =IF(Tabla29[[#This Row],[T]]<>"X"," ",Tabla29[[#This Row],[T]]) ->  | L31: =IF(Tabla29[[#This Row],[VALORACIÓN INSPECTOR]]=" "," ",Tabla29[[#This Row],[VALORACIÓN INSPECTOR]]) -> 0 | M31: =IF(Tabla29[[#This Row],[OBSERVACIONES INSPECTOR]]=0," ",Tabla29[[#This Row],[OBSERVACIONES INSPECTOR]]) ->  | N31: =0.5*(0.42-$N$32) -> 0.21 | O31: 0
C32: Estado del aislamiento instalado | D32: Realización de: -Inspecciones visuales -Inspecciones Dimensionales -Inpecciones mediante informacion de planos -Inspecciones mediante informacion de certicados -Inspecciones mediante termografías | E32: 3,1 4.3.2 | F32: 0.05 | G32: =IF(Tabla29[[#This Row],[V]]<>"X"," ",Tabla29[[#This Row],[V]]) ->  | H32: =IF(Tabla29[[#This Row],[D]]<>"X"," ",Tabla29[[#This Row],[D]]) ->  | I32: =IF(Tabla29[[#This Row],[P]]<>"X"," ",Tabla29[[#This Row],[P]]) ->  | J32: =IF(Tabla29[[#This Row],[C]]<>"X"," ",Tabla29[[#This Row],[C]]) ->  | K32: =IF(Tabla29[[#This Row],[T]]<>"X"," ",Tabla29[[#This Row],[T]]) ->  | L32: =IF(Tabla29[[#This Row],[VALORACIÓN INSPECTOR]]=" "," ",Tabla29[[#This Row],[VALORACIÓN INSPECTOR]]) -> 0 | M32: =IF(Tabla29[[#This Row],[OBSERVACIONES INSPECTOR]]=0," ",Tabla29[[#This Row],[OBSERVACIONES INSPECTOR]]) ->  | N32: =+U33 -> 0 | O32: 0
C33: Adecuada sujección | D33: Según especificaciones | E33: 3,1 4.3.2 | F33: 0.05 | G33: =IF(Tabla29[[#This Row],[V]]<>"X"," ",Tabla29[[#This Row],[V]]) ->  | H33: =IF(Tabla29[[#This Row],[D]]<>"X"," ",Tabla29[[#This Row],[D]]) ->  | I33: =IF(Tabla29[[#This Row],[P]]<>"X"," ",Tabla29[[#This Row],[P]]) ->  | J33: =IF(Tabla29[[#This Row],[C]]<>"X"," ",Tabla29[[#This Row],[C]]) ->  | K33: =IF(Tabla29[[#This Row],[T]]<>"X"," ",Tabla29[[#This Row],[T]]) ->  | L33: =IF(Tabla29[[#This Row],[VALORACIÓN INSPECTOR]]=" "," ",Tabla29[[#This Row],[VALORACIÓN INSPECTOR]]) -> 0 | M33: =IF(Tabla29[[#This Row],[OBSERVACIONES INSPECTOR]]=0," ",Tabla29[[#This Row],[OBSERVACIONES INSPECTOR]]) ->  | N33: =0.25*(0.42-$N$32) -> 0.105 | O33: 0
C34: Juntas a tope y contrapeadas (multicapa) | D34: Según especificaciones | E34: 3,1 4.3.2 | F34: 0.05 | G34: =IF(Tabla29[[#This Row],[V]]<>"X"," ",Tabla29[[#This Row],[V]]) ->  | H34: =IF(Tabla29[[#This Row],[D]]<>"X"," ",Tabla29[[#This Row],[D]]) ->  | I34: =IF(Tabla29[[#This Row],[P]]<>"X"," ",Tabla29[[#This Row],[P]]) ->  | J34: =IF(Tabla29[[#This Row],[C]]<>"X"," ",Tabla29[[#This Row],[C]]) ->  | K34: =IF(Tabla29[[#This Row],[T]]<>"X"," ",Tabla29[[#This Row],[T]]) ->  | L34: =IF(Tabla29[[#This Row],[VALORACIÓN INSPECTOR]]=" "," ",Tabla29[[#This Row],[VALORACIÓN INSPECTOR]]) -> 0 | M34: =IF(Tabla29[[#This Row],[OBSERVACIONES INSPECTOR]]=0," ",Tabla29[[#This Row],[OBSERVACIONES INSPECTOR]]) ->  | N34: =0.25*(0.42-$N$32) -> 0.105 | O34: 0
B35: Protección metálica | C35: Tipo y espesor del material instalado | D35: Según especificaciones/ guía | E35: 3.2.1 4.3.3 | F35: 0.2 | G35: =IF(Tabla29[[#This Row],[V]]<>"X"," ",Tabla29[[#This Row],[V]]) ->  | H35: =IF(Tabla29[[#This Row],[D]]<>"X"," ",Tabla29[[#This Row],[D]]) ->  | I35: =IF(Tabla29[[#This Row],[P]]<>"X"," ",Tabla29[[#This Row],[P]]) ->  | J35: =IF(Tabla29[[#This Row],[C]]<>"X"," ",Tabla29[[#This Row],[C]]) ->  | K35: =IF(Tabla29[[#This Row],[T]]<>"X"," ",Tabla29[[#This Row],[T]]) ->  | L35: =IF(Tabla29[[#This Row],[VALORACIÓN INSPECTOR]]=" "," ",Tabla29[[#This Row],[VALORACIÓN INSPECTOR]]) -> 0 | M35: =IF(Tabla29[[#This Row],[OBSERVACIONES INSPECTOR]]=0," ",Tabla29[[#This Row],[OBSERVACIONES INSPECTOR]]) ->  | N35: 0.06 | O35: 0
C36: Ejecución de bordones y solapes | D36: Según Guía | E36: 3.2.1 4.3.3 | F36: 0.05 | G36: =IF(Tabla29[[#This Row],[V]]<>"X"," ",Tabla29[[#This Row],[V]]) ->  | H36: =IF(Tabla29[[#This Row],[D]]<>"X"," ",Tabla29[[#This Row],[D]]) ->  | I36: =IF(Tabla29[[#This Row],[P]]<>"X"," ",Tabla29[[#This Row],[P]]) ->  | J36: =IF(Tabla29[[#This Row],[C]]<>"X"," ",Tabla29[[#This Row],[C]]) ->  | K36: =IF(Tabla29[[#This Row],[T]]<>"X"," ",Tabla29[[#This Row],[T]]) ->  | L36: =IF(Tabla29[[#This Row],[VALORACIÓN INSPECTOR]]=" "," ",Tabla29[[#This Row],[VALORACIÓN INSPECTOR]]) -> 0 | M36: =IF(Tabla29[[#This Row],[OBSERVACIONES INSPECTOR]]=0," ",Tabla29[[#This Row],[OBSERVACIONES INSPECTOR]]) ->  | N36: 0.05 | O36: 0
C37: Fijación por tornillos / remaches POP | D37: Aprox. cada 250 mm. Según Guía | E37: 4.3.3 | F37: 0.05 | G37: =IF(Tabla29[[#This Row],[V]]<>"X"," ",Tabla29[[#This Row],[V]]) ->  | H37: =IF(Tabla29[[#This Row],[D]]<>"X"," ",Tabla29[[#This Row],[D]]) ->  | I37: =IF(Tabla29[[#This Row],[P]]<>"X"," ",Tabla29[[#This Row],[P]]) ->  | J37: =IF(Tabla29[[#This Row],[C]]<>"X"," ",Tabla29[[#This Row],[C]]) ->  | K37: =IF(Tabla29[[#This Row],[T]]<>"X"," ",Tabla29[[#This Row],[T]]) ->  | L37: =IF(Tabla29[[#This Row],[VALORACIÓN INSPECTOR]]=" "," ",Tabla29[[#This Row],[VALORACIÓN INSPECTOR]]) -> 0 | M37: =IF(Tabla29[[#This Row],[OBSERVACIONES INSPECTOR]]=0," ",Tabla29[[#This Row],[OBSERVACIONES INSPECTOR]]) ->  | N37: 0.02 | O37: 0
C38: Superficie aislada (bridas, válvulas,..) | D38: Según especificaciones | E38: 3.1 4.3.2 | F38: 1 | G38: =IF(Tabla29[[#This Row],[V]]<>"X"," ",Tabla29[[#This Row],[V]]) ->  | H38: =IF(Tabla29[[#This Row],[D]]<>"X"," ",Tabla29[[#This Row],[D]]) ->  | I38: =IF(Tabla29[[#This Row],[P]]<>"X"," ",Tabla29[[#This Row],[P]]) ->  | J38: =IF(Tabla29[[#This Row],[C]]<>"X"," ",Tabla29[[#This Row],[C]]) ->  | K38: =IF(Tabla29[[#This Row],[T]]<>"X"," ",Tabla29[[#This Row],[T]]) ->  | L38: =IF(Tabla29[[#This Row],[VALORACIÓN INSPECTOR]]=" "," ",Tabla29[[#This Row],[VALORACIÓN INSPECTOR]]) -> 0 | M38: =IF(Tabla29[[#This Row],[OBSERVACIONES INSPECTOR]]=0," ",Tabla29[[#This Row],[OBSERVACIONES INSPECTOR]]) ->  | N38: 0.07 | O38: 0
B39: Montaje | C39: Correcta instalación a favor de agua | D39: Según Guía | E39: 4.3.3 | F39: 0.05 | G39: =IF(Tabla29[[#This Row],[V]]<>"X"," ",Tabla29[[#This Row],[V]]) ->  | H39: =IF(Tabla29[[#This Row],[D]]<>"X"," ",Tabla29[[#This Row],[D]]) ->  | I39: =IF(Tabla29[[#This Row],[P]]<>"X"," ",Tabla29[[#This Row],[P]]) ->  | J39: =IF(Tabla29[[#This Row],[C]]<>"X"," ",Tabla29[[#This Row],[C]]) ->  | K39: =IF(Tabla29[[#This Row],[T]]<>"X"," ",Tabla29[[#This Row],[T]]) ->  | L39: =IF(Tabla29[[#This Row],[VALORACIÓN INSPECTOR]]=" "," ",Tabla29[[#This Row],[VALORACIÓN INSPECTOR]]) -> 0 | M39: =IF(Tabla29[[#This Row],[OBSERVACIONES INSPECTOR]]=0," ",Tabla29[[#This Row],[OBSERVACIONES INSPECTOR]]) ->  | N39: 0.06 | O39: 0
C40: Correcto sellado (donde haya riesgo de entrada de agua de lluvía) | D40: Según Guía | E40: 4.3.3 | F40: 0.05 | G40: =IF(Tabla29[[#This Row],[V]]<>"X"," ",Tabla29[[#This Row],[V]]) ->  | H40: =IF(Tabla29[[#This Row],[D]]<>"X"," ",Tabla29[[#This Row],[D]]) ->  | I40: =IF(Tabla29[[#This Row],[P]]<>"X"," ",Tabla29[[#This Row],[P]]) ->  | J40: =IF(Tabla29[[#This Row],[C]]<>"X"," ",Tabla29[[#This Row],[C]]) ->  | K40: =IF(Tabla29[[#This Row],[T]]<>"X"," ",Tabla29[[#This Row],[T]]) ->  | L40: =IF(Tabla29[[#This Row],[VALORACIÓN INSPECTOR]]=" "," ",Tabla29[[#This Row],[VALORACIÓN INSPECTOR]]) -> 0 | M40: =IF(Tabla29[[#This Row],[OBSERVACIONES INSPECTOR]]=0," ",Tabla29[[#This Row],[OBSERVACIONES INSPECTOR]]) ->  | N40: 0.06 | O40: 0
C41: Uso de tapas en finales de aislamiento ( cajas desmontables, rosetas,…) | D41: Según Guía | E41: 4.11 | F41: 0.05 | G41: =IF(Tabla29[[#This Row],[V]]<>"X"," ",Tabla29[[#This Row],[V]]) ->  | H41: =IF(Tabla29[[#This Row],[D]]<>"X"," ",Tabla29[[#This Row],[D]]) ->  | I41: =IF(Tabla29[[#This Row],[P]]<>"X"," ",Tabla29[[#This Row],[P]]) ->  | J41: =IF(Tabla29[[#This Row],[C]]<>"X"," ",Tabla29[[#This Row],[C]]) ->  | K41: =IF(Tabla29[[#This Row],[T]]<>"X"," ",Tabla29[[#This Row],[T]]) ->  | L41: =IF(Tabla29[[#This Row],[VALORACIÓN INSPECTOR]]=" "," ",Tabla29[[#This Row],[VALORACIÓN INSPECTOR]]) -> 0 | M41: =IF(Tabla29[[#This Row],[OBSERVACIONES INSPECTOR]]=0," ",Tabla29[[#This Row],[OBSERVACIONES INSPECTOR]]) ->  | N41: 0.04 | O41: 0
C42: Correcto tratamiento salidas de traceaado. | D42: Según Guía | E42: 4.11 | F42: 0.05 | G42: =IF(Tabla29[[#This Row],[V]]<>"X"," ",Tabla29[[#This Row],[V]]) ->  | H42: =IF(Tabla29[[#This Row],[D]]<>"X"," ",Tabla29[[#This Row],[D]]) ->  | I42: =IF(Tabla29[[#This Row],[P]]<>"X"," ",Tabla29[[#This Row],[P]]) ->  | J42: =IF(Tabla29[[#This Row],[C]]<>"X"," ",Tabla29[[#This Row],[C]]) ->  | K42: =IF(Tabla29[[#This Row],[T]]<>"X"," ",Tabla29[[#This Row],[T]]) ->  | L42: =IF(Tabla29[[#This Row],[VALORACIÓN INSPECTOR]]=" "," ",Tabla29[[#This Row],[VALORACIÓN INSPECTOR]]) -> 0 | M42: =IF(Tabla29[[#This Row],[OBSERVACIONES INSPECTOR]]=0," ",Tabla29[[#This Row],[OBSERVACIONES INSPECTOR]]) ->  | N42: 0.02 | O42: 0
C43: Tratamiento de puentes térmicos (tapas, instrumentos,…) | D43: Según Guía | E43: 4.11 | F43: 0.05 | G43: =IF(Tabla29[[#This Row],[V]]<>"X"," ",Tabla29[[#This Row],[V]]) ->  | H43: =IF(Tabla29[[#This Row],[D]]<>"X"," ",Tabla29[[#This Row],[D]]) ->  | I43: =IF(Tabla29[[#This Row],[P]]<>"X"," ",Tabla29[[#This Row],[P]]) ->  | J43: =IF(Tabla29[[#This Row],[C]]<>"X"," ",Tabla29[[#This Row],[C]]) ->  | K43: =IF(Tabla29[[#This Row],[T]]<>"X"," ",Tabla29[[#This Row],[T]]) ->  | L43: =IF(Tabla29[[#This Row],[VALORACIÓN INSPECTOR]]=" "," ",Tabla29[[#This Row],[VALORACIÓN INSPECTOR]]) -> 0 | M43: =IF(Tabla29[[#This Row],[OBSERVACIONES INSPECTOR]]=0," ",Tabla29[[#This Row],[OBSERVACIONES INSPECTOR]]) ->  | N43: 0.04 | O43: 0
B44: Acabado final | C44: No presenta golpes, ni aberturas, ni daños. | D44: Inspección general | E44: Guía | F44: 0.05 | G44: =IF(Tabla29[[#This Row],[V]]<>"X"," ",Tabla29[[#This Row],[V]]) ->  | H44: =IF(Tabla29[[#This Row],[D]]<>"X"," ",Tabla29[[#This Row],[D]]) ->  | I44: =IF(Tabla29[[#This Row],[P]]<>"X"," ",Tabla29[[#This Row],[P]]) ->  | J44: =IF(Tabla29[[#This Row],[C]]<>"X"," ",Tabla29[[#This Row],[C]]) ->  | K44: =IF(Tabla29[[#This Row],[T]]<>"X"," ",Tabla29[[#This Row],[T]]) ->  | L44: =IF(Tabla29[[#This Row],[VALORACIÓN INSPECTOR]]=" "," ",Tabla29[[#This Row],[VALORACIÓN INSPECTOR]]) -> 0 | M44: =IF(Tabla29[[#This Row],[OBSERVACIONES INSPECTOR]]=0," ",Tabla29[[#This Row],[OBSERVACIONES INSPECTOR]]) ->  | N44: 0.1 | O44: 0
C45: • V= Visual • D= Dimensional • P= Información de Planos • C= Información de Certificados • T= Termografía | N45: TOTAL PPI | O45: =SUM($O29:$O44) -> 0

Sheet CALIFICACIÓN (IMP) (hidden)
A1: CÁLCULO DE LA CALIFICACIÓN DE LA INSTALACIÓN
A3: A) Superficies de tuberías (hasta 1000 mm de diámetro)
B5: Tuberías | C5: Nota BASE (N) | D5: Ponderación Superficies Aisladas (% 1) | E5: Ponderación Calidad de aislamiento (% 2) | F5: Nota Total Obtenida (N x %1 x %2)
B6: ANEXO 2.a): Espesores de Aislamiento | C6: 6 | D6: ='Datos (SUP AISLADA)'!H30 -> 0 | E6: ='Datos (ESP AISLAMIENTO)'!E60 -> 0 | F6: =ROUND($E6*$D6*$C6,2) -> 0
B7: ANEXO 3.a): Registros de Inspección | C7: 4 | D7: ='Datos (SUP AISLADA)'!H30 -> 0 | E7: ='Datos (PPI AISLAMIENTO)'!O23 -> 0 | F7: =ROUND($E7*$D7*$C7,2) -> 0
B8: TOTAL NOTA MÁXIMA | C8: =SUM(C6:C7) -> 10 | E8: TOTAL | F8: =SUM($F6:$F7) -> 0
A10: B) Superficies planas (desde 1000 mm de diámetro) y equipos
B12: Tuberías | C12: Nota BASE (N) | D12: Ponderación Superficies Aisladas (% 1). | E12: Ponderación Calidad de aislamiento (% 2). | F12: Nota Total Obtenida (N x %1 x %2)
B13: ANEXO 2.b): Espesores de Aislamiento | C13: 6 | D13: ='Datos (SUP AISLADA)'!H31 -> 0 | E13: ='Datos (ESP AISLAMIENTO)'!E121 -> 0 | F13: =ROUND($E13*$D13*$C13,2) -> 0
B14: ANEXO 3.b): Registros de Inspección | C14: 4 | D14: ='Datos (SUP AISLADA)'!H31 -> 0 | E14: ='Datos (PPI AISLAMIENTO)'!O45 -> 0 | F14: =ROUND($E14*$D14*$C14,2) -> 0
B15: TOTAL NOTA MÁXIMA | C15: =SUM(C13:C14) -> 10 | E15: TOTAL | F15: =SUM($F13:$F14) -> 0
A17: C) Total de superfices calientes en la instalación (A)+(B)
B19: Según tabla a continuación:
B21: Sistema | C21: PESO CISA (%) | D21: NOTA PARCIAL | E21: NOTA PONDERADA
B22: Tuberías | C22: ='Datos (SUP AISLADA)'!$M$30 -> 0 | D22: =$F$8 -> 0 | E22: =IFERROR((ROUND($D$22*$C$22,2)),0) -> 0
B23: Equipos | C23: ='Datos (SUP AISLADA)'!$M$31 -> 0 | D23: =$F$15 -> 0 | E23: =IFERROR((ROUND($D$23*$C$23,2)),0) -> 0
D24: NOTA GLOBAL | E24: =SUM($E$22:$E$23) -> 0
A26: CALIFICACIÓN OBTENIDA
D28: NOTA: | E28: =E24 -> 0
B30: Rango | C30: Nota | D30: Recomendaciones
B31: más de 9 | C31: Excelente | D31: Mantenimiento Preventivo
B32: de 7 a 9 | C32: Bueno | D32: Mantenimiento Preventivo. Actuaciones puntuales
B33: de 5 a 7 | C33: Deficiente | D33: Mantenimiento Correctivo y Preventivo. Actuaciones de mejora
B34: menos de 5 | C34: Muy deficiente | D34: Actuaciones generalizadas de mejora

Sheet COSTE NO AISLAM (IMP) (hidden)
A1: COSTE DE NO AISLAMIENTO
B3: Precio adoptado energía kWh | G3: =IF('COSTE NO AISLAM'!E3=0," ",'COSTE NO AISLAM'!E3) ->  | H3: €/kWh
A5: A) Superficies de tuberías (hasta 1000 mm de diámetro)
B7: Número de horas anuales de trabajo bajo condiciones de operación | G7: =IF('COSTE NO AISLAM'!E7=0," ",'COSTE NO AISLAM'!E7) ->  | H7: horas/año
B9: Tª superficial de la instalación X (ºC) | C9: Total m² SIN AISLAR | D9: Diámetro medio (mm) | E9: Total pérdidas kW/m² | F9: Total pérdidas kWh/año | H9: Total €/año
B10: 60<X≤100 | C10: ='Datos (SUP AISLADA)'!B6-'Datos (SUP AISLADA)'!C6-'Datos (SUP AISLADA)'!D6 -> 0 | D10: =IF('COSTE NO AISLAM'!C10=0," ",'COSTE NO AISLAM'!C10) ->  | E10: =IFERROR(('Hoja Cálculos Térmicos'!Q8),0) -> 0 | F10: ='COSTE NO AISLAM'!E10 -> 0 | H10: ='COSTE NO AISLAM'!$F10 -> 0
B11: 100<X≤200 | C11: ='Datos (SUP AISLADA)'!B7-'Datos (SUP AISLADA)'!C7-'Datos (SUP AISLADA)'!D7 -> 0 | D11: =IF('COSTE NO AISLAM'!C11=0," ",'COSTE NO AISLAM'!C11) ->  | E11: =IFERROR(('Hoja Cálculos Térmicos'!Q9),0) -> 0 | F11: ='COSTE NO AISLAM'!E11 -> 0 | H11: ='COSTE NO AISLAM'!$F11 -> 0
B12: 200<X≤300 | C12: ='Datos (SUP AISLADA)'!B8-'Datos (SUP AISLADA)'!C8-'Datos (SUP AISLADA)'!D8 -> 0 | D12: =IF('COSTE NO AISLAM'!C12=0," ",'COSTE NO AISLAM'!C12) ->  | E12: =IFERROR(('Hoja Cálculos Térmicos'!Q10),0) -> 0 | F12: ='COSTE NO AISLAM'!E12 -> 0 | H12: ='COSTE NO AISLAM'!$F12 -> 0
B13: 300<X≤400 | C13: ='Datos (SUP AISLADA)'!B9-'Datos (SUP AISLADA)'!C9-'Datos (SUP AISLADA)'!D9 -> 0 | D13: =IF('COSTE NO AISLAM'!C13=0," ",'COSTE NO AISLAM'!C13) ->  | E13: =IFERROR(('Hoja Cálculos Térmicos'!Q11),0) -> 0 | F13: ='COSTE NO AISLAM'!E13 -> 0 | H13: ='COSTE NO AISLAM'!$F13 -> 0
B14: 400<X≤500 | C14: ='Datos (SUP AISLADA)'!B10-'Datos (SUP AISLADA)'!C10-'Datos (SUP AISLADA)'!D10 -> 0 | D14: =IF('COSTE NO AISLAM'!C14=0," ",'COSTE NO AISLAM'!C14) ->  | E14: =IFERROR(('Hoja Cálculos Térmicos'!Q12),0) -> 0 | F14: ='COSTE NO AISLAM'!E14 -> 0 | H14: ='COSTE NO AISLAM'!$F14 -> 0
B15: 500<X≤600 | C15: ='Datos (SUP AISLADA)'!B11-'Datos (SUP AISLADA)'!C11-'Datos (SUP AISLADA)'!D11 -> 0 | D15: =IF('COSTE NO AISLAM'!C15=0," ",'COSTE NO AISLAM'!C15) ->  | E15: =IFERROR(('Hoja Cálculos Térmicos'!Q13),0) -> 0 | F15: ='COSTE NO AISLAM'!E15 -> 0 | H15: ='COSTE NO AISLAM'!$F15 -> 0
B16: 600<X≤650 | C16: ='Datos (SUP AISLADA)'!B12-'Datos (SUP AISLADA)'!C12-'Datos (SUP AISLADA)'!D12 -> 0 | D16: =IF('COSTE NO AISLAM'!C16=0," ",'COSTE NO AISLAM'!C16) ->  | E16: =IFERROR(('Hoja Cálculos Térmicos'!Q14),0) -> 0 | F16: ='COSTE NO AISLAM'!E16 -> 0 | H16: ='COSTE NO AISLAM'!$F16 -> 0
B17: TOTAL | C17: =SUM(C10:C16) -> 0 | F17: =SUM(F10:F16) -> 0 | H17: =SUM(H10:H16) -> 0
A19: B) Superficies planas (desde 1000 mm de diámetro) y equipos
B21: Número de horas anuales de trabajo bajo condiciones de operación | F21: horas/año | G21: =IF('COSTE NO AISLAM'!E21=0," ",'COSTE NO AISLAM'!E21) ->  | H21: horas/año
B23: Tª superficial de la instalación X (ºC) | C23: Total m² SIN AISLAR | D23: Total pérdidas kW/m² | F23: Total pérdidas kWh/año | H23: Total €/año
B24: 60<X≤100 | C24: ='Datos (SUP AISLADA)'!B18-'Datos (SUP AISLADA)'!C18-'Datos (SUP AISLADA)'!D18 -> 0 | D24: ='Hoja Cálculos Térmicos'!I23 -> 1.037668897 | F24: ='COSTE NO AISLAM'!D24 -> 0 | H24: ='COSTE NO AISLAM'!E24 -> 0
B25: 100<X≤200 | C25: ='Datos (SUP AISLADA)'!B19-'Datos (SUP AISLADA)'!C19-'Datos (SUP AISLADA)'!D19 -> 0 | D25: ='Hoja Cálculos Térmicos'!I24 -> 2.510434778 | F25: ='COSTE NO AISLAM'!D25 -> 0 | H25: ='COSTE NO AISLAM'!E25 -> 0
B26: 200<X≤300 | C26: ='Datos (SUP AISLADA)'!B20-'Datos (SUP AISLADA)'!C20-'Datos (SUP AISLADA)'!D20 -> 0 | D26: ='Hoja Cálculos Térmicos'!I25 -> 5.731453936 | F26: ='COSTE NO AISLAM'!D26 -> 0 | H26: ='COSTE NO AISLAM'!E26 -> 0
B27: 300<X≤400 | C27: ='Datos (SUP AISLADA)'!B21-'Datos (SUP AISLADA)'!C21-'Datos (SUP AISLADA)'!D21 -> 0 | D27: ='Hoja Cálculos Térmicos'!I26 -> 10.7495452 | F27: ='COSTE NO AISLAM'!D27 -> 0 | H27: ='COSTE NO AISLAM'!E27 -> 0
B28: 400<X≤500 | C28: ='Datos (SUP AISLADA)'!B22-'Datos (SUP AISLADA)'!C22-'Datos (SUP AISLADA)'!D22 -> 0 | D28: ='Hoja Cálculos Térmicos'!I27 -> 18.24072111 | F28: ='COSTE NO AISLAM'!D28 -> 0 | H28: ='COSTE NO AISLAM'!E28 -> 0
B29: 500<X≤600 | C29: ='Datos (SUP AISLADA)'!B23-'Datos (SUP AISLADA)'!C23-'Datos (SUP AISLADA)'!D23 -> 0 | D29: ='Hoja Cálculos Térmicos'!I28 -> 29.01416068 | F29: ='COSTE NO AISLAM'!D29 -> 0 | H29: ='COSTE NO AISLAM'!E29 -> 0
B30: 600<X≤650 | C30: ='Datos (SUP AISLADA)'!B24-'Datos (SUP AISLADA)'!C24-'Datos (SUP AISLADA)'!D24 -> 0 | D30: ='Hoja Cálculos Térmicos'!I29 -> 39.80696679 | F30: ='COSTE NO AISLAM'!D30 -> 0 | H30: ='COSTE NO AISLAM'!E30 -> 0
B31: TOTAL | C31: =SUM(C24:C30) -> 0 | F31: =SUM(F24:F30) -> 0 | H31: =SUM(H24:H30) -> 0
A33: C) Coste de no aislamiento en todas las superficies
B35: Tª superficial de la instalación X (ºC) | C35: Total m² SIN AISLAR | D35: Total €/año
B36: 60<X≤100 | C36: =C10+C24 -> 0 | D36: =H10+H24 -> 0
B37: 100<X≤200 | C37: =C11+C25 -> 0 | D37: 0
B38: 200<X≤300 | C38: 0 | D38: 0
B39: 300<X≤400 | C39: 0 | D39: 0
B40: 400<X≤500 | C40: 0 | D40: 0
B41: 500<X≤600 | C41: 0 | D41: 0
B42: 600<X≤650 | C42: 0 | D42: 0
B43: TOTAL | C43: =SUM(C36:C42) -> 0 | D43: =SUM(D36:E42) -> 0

Sheet RECOMENDACIONES (IMP) (hidden)
A1: RECOMENDACIONES DEL INSPECTOR
A3: A) Superficies de tuberías (hasta 1000 mm de diámetro)
B5: =IF('Datos (SUP AISLADA)'!$M$13<=0,"","La nota parcial obtenida para las tuberías de la instalación ha sido: "&(IF(CALIFICACIÓN!$E$8<='Hoja de programación'!$R$6,'Hoja de programación'!$S$6,(IF(CALIFICACIÓN!$E$8<='Hoja de programación'!$R$5,'Hoja de programación'!$S$5,(IF(CALIFICACIÓN!$E$8<='Hoja de programación'!$R$4,'Hoja de programación'!$S$4,(IF(CALIFICACIÓN!$E$8<='Hoja de programación'!$R$3,'Hoja de programación'!$S$3,0))))))))) -> 
B6: =IF('Datos (SUP AISLADA)'!$M$13<=0," ","Las medidas a adoptar atendiendo a la calificación obtenida son:") -> 
B7: =IF('Datos (SUP AISLADA)'!$M$13<=0," ",VLOOKUP((IF(CALIFICACIÓN!$E$8<='Hoja de programación'!$R$6,'Hoja de programación'!$S$6,(IF(CALIFICACIÓN!$E$8<='Hoja de programación'!$R$5,'Hoja de programación'!$S$5,(IF(CALIFICACIÓN!$E$8<='Hoja de programación'!$R$4,'Hoja de programación'!$S$4,(IF(CALIFICACIÓN!$E$8<='Hoja de programación'!$R$3,'Hoja de programación'!$S$3,0)))))))),'Hoja de programación'!$G$9:$H$13,2,FALSE)) -> 
A11: B) Superficies planas (desde 1000 mm de diámetro) y equipos
B13: =IF('Datos (SUP AISLADA)'!$M$25<=0," ","La nota parcial obtenida para las superficies planas y equipos de la instalación ha sido: "&(IF(CALIFICACIÓN!$E$15<='Hoja de programación'!$R$6,'Hoja de programación'!$S$6,(IF(CALIFICACIÓN!$E$15<='Hoja de programación'!$R$5,'Hoja de programación'!$S$5,(IF(CALIFICACIÓN!$E$15<='Hoja de programación'!$R$4,'Hoja de programación'!$S$4,(IF(CALIFICACIÓN!$E$15<='Hoja de programación'!$R$3,'Hoja de programación'!$S$3,0))))))))) -> 
B14: =IF('Datos (SUP AISLADA)'!$M$25<=0," ","Las medidas a adoptar atendiendo a la calificación obtenida son:") -> 
B15: =IF('Datos (SUP AISLADA)'!$M$25<=0," ",VLOOKUP((IF(CALIFICACIÓN!$E$15<='Hoja de programación'!$R$6,'Hoja de programación'!$S$6,(IF(CALIFICACIÓN!$E$15<='Hoja de programación'!$R$5,'Hoja de programación'!$S$5,(IF(CALIFICACIÓN!$E$15<='Hoja de programación'!$R$4,'Hoja de programación'!$S$4,(IF(CALIFICACIÓN!$E$15<='Hoja de programación'!$R$3,'Hoja de programación'!$S$3,0)))))))),'Hoja de programación'!$G$15:$H$18,2,FALSE)) -> 

Sheet Hoja de programación (hidden)
A1: Datos validación | C1: Percentiles | E1: Cumplimiento | J1: Checklist | L1: Provincias | M1: Comunidad Autónoma | N1: CC_XX
A2: Sí | C2: 0 | E2: Sí | G2: Nota | H2: Recomendaciones | Q2: Inferior | R2: Superior | S2: Nota
A3: No | C3: 0.1 | E3: Parcial | G3: Excelente | H3: Mantenimiento Preventivo | J3: X | L3: Albacete | M3: CASTILLA LA MANCHA | N3: 02 | Q3: 9 | R3: 10 | S3: Excelente
C4: 0.2 | E4: No | G4: Muy bueno | H4: Mantenimiento Preventivo. Actuaciones puntuales | L4: Alicante/Alacant | M4: COMUNIDAD VALENCIANA | N4: 03 | Q4: 7 | R4: 9 | S4: Muy bueno
C5: 0.3 | G5: Correcto | H5: Manteamiento Correctivo y Preventivo. Actuaciones de mejora | L5: Almería | M5: ANDALUCÍA | N5: 04 | Q5: 5 | R5: 7 | S5: Correcto
C6: 0.4 | G6: Deficiente | H6: Actuaciones generalizadas de mejora | L6: Araba/Álava | M6: EUSKADI | N6: 01 | Q6: 0 | R6: 5 | S6: Deficiente | U6: =(IF(CALIFICACIÓN!$E$8<='Hoja de programación'!$R$6,'Hoja de programación'!$S$6,(IF(CALIFICACIÓN!$E$8<='Hoja de programación'!$R$5,'Hoja de programación'!$S$5,(IF(CALIFICACIÓN!$E$8<='Hoja de programación'!$R$4,'Hoja de programación'!$S$4,(IF(CALIFICACIÓN!$E$8<='Hoja de programación'!$R$3,'Hoja de programación'!$S$3,0)))))))) -> Deficiente
C7: 0.5 | L7: Asturias | M7: PRINCIPADO DE ASTURIAS | N7: 33 | U7: =IF(CALIFICACIÓN!$E$15<='Hoja de programación'!$R$6,'Hoja de programación'!$S$6,(IF(CALIFICACIÓN!$E$15<='Hoja de programación'!$R$5,'Hoja de programación'!$S$5,(IF(CALIFICACIÓN!$E$15<='Hoja de programación'!$R$4,'Hoja de programación'!$S$4,(IF(CALIFICACIÓN!$E$15<='Hoja de programación'!$R$3,'Hoja de programación'!$S$3,0))))))) -> Deficiente
C8: 0.6 | G8: Nota | H8: Recomendación Tuberías | L8: Ávila | M8: CASTILLA-LEÓN | N8: 05
C9: 0.7 | G9: Excelente | H9: Implantación/aplicación del plan de mantenimiento preventivo: · Revisión periódica del estado del aislamiento. · Adecuado desmontaje y montaje del aislamiento de bridas, válvulas y elementos singulares. | L9: Badajoz | M9: EXTREMADURA | N9: 06
C10: 0.8 | G10: Muy bueno | H10: Implantación/aplicación del plan de mantenimiento preventivo: · Revisión periódica del estado del aislamiento. · Adecuado desmontaje y montaje del aislamiento de bridas, válvulas y elementos singulares. · Actuaciones puntuales en zonas no aisladas, como bridas, válvulas, etc., o en zonas con aislamiento defectuoso. · Realización de mediciones mas estrictas para detectar puntos calientes no esperados. | L10: Balears, Illes | M10: ISLAS BALEARES | N10: 07
C11: 0.9 | G11: Correcto | H11: Implantación/aplicación del plan de mantenimiento preventivo: · Revisión periódica del estado del aislamiento. · Adecuado desmontaje y montaje del aislamiento de bridas, válvulas y elementos singulares. · Actuaciones puntuales en zonas no aisladas, como bridas, válvulas, etc., o en zonas con aislamiento defectuoso. · Realización de mediciones mas estrictas para detectar puntos calientes no esperados. · Realización de auditorías específicas del aislamiento, realización de estudio de viabilidad y realización de actuaciones de mejora en las zonas con aislamiento defectuoso. | L11: Barcelona | M11: CATALUNYA | N11: 08
C12: 1 | G12: Deficiente | H12: ·Realización de auditoría específica del aislamiento para realización de un plan de acción global para la mejora, sustitución o implementación de un nuevo sistema de aislamiento allí donde sea necesario. | L12: Bizkaia | M12: EUSKADI | N12: 48
L13: Burgos | M13: CASTILLA-LEÓN | N13: 09
G14: Nota | H14: Recomendación Equipos | L14: Cáceres | M14: EXTREMADURA | N14: 10
G15: Excelente | H15: Implantación/aplicación del plan de mantenimiento preventivo: · Revisión periódica del estado del aislamiento. · Adecuado desmontaje y montaje del aislamiento de bridas, bridas ciegas, bocas de hombre y elementos singulares. | L15: Cádiz | M15: ANDALUCÍA | N15: 11
G16: Muy bueno | H16: Implantación/aplicación del plan de mantenimiento preventivo: · Revisión periódica del estado del aislamiento. · Adecuado desmontaje y montaje del aislamiento de bridas, válvulas y elementos singulares. · Actuaciones puntuales en zonas no aisladas, como bridas, válvulas, etc., o en zonas con aislamiento defectuoso. · Realización de mediciones más estrictas para detectar puntos calientes no esperados. | L16: Cantabria | M16: CANTABRIA | N16: 39
G17: Correcto | H17: Implantación/aplicación del plan de mantenimiento preventivo: · Revisión periódica del estado del aislamiento. · Adecuado desmontaje y montaje del aislamiento de bridas, válvulas y elementos singulares. · Actuaciones puntuales en zonas no aisladas, como bridas, válvulas, etc., o en zonas con aislamiento defectuoso. · Realización de mediciones más estrictas para detectar puntos calientes no esperados. · Realización de auditorías específicas del aislamiento, realización de estudio de viabilidad y realización de actuaciones de mejora en las zonas con aislamiento defectuoso. | L17: Castellón/Castelló | M17: COMUNIDAD VALENCIANA | N17: 12
G18: Deficiente | H18: ·Realización de auditoría específica del aislamiento para realización de un plan de acción global para la mejora, sustitución o implementación de un nuevo sistema de aislamiento allí donde sea necesario. | L18: Ceuta | M18: CEUTA | N18: 51
L19: Ciudad Real | M19: CASTILLA LA MANCHA | N19: 13
L20: Córdoba | M20: ANDALUCÍA | N20: 14
L21: Coruña, A | M21: GALICIA | N21: 15
L22: Cuenca | M22: CASTILLA LA MANCHA | N22: 16
L23: Guipúzcoa | M23: EUSKADI | N23: 20
L24: Girona | M24: CATALUNYA | N24: 17
L25: Granada | M25: ANDALUCÍA | N25: 18
L26: Guadalajara | M26: CASTILLA LA MANCHA | N26: 19
L27: Huelva | M27: ANDALUCÍA | N27: 21
L28: Huesca | M28: ARAGÓN | N28: 22
L29: Jaén | M29: ANDALUCÍA | N29: 23
L30: León | M30: CASTILLA -LEÓN | N30: 24
L31: Lleida | M31: CATALUNYA | N31: 25
L32: Lugo | M32: GALICIA | N32: 27
L33: Madrid | M33: COMUNIDAD DE MADRID | N33: 28
L34: Málaga | M34: ANDALUCÍA | N34: 29
L35: Melilla | M35: MELILLA | N35: 52
L36: Murcia | M36: MURCIA | N36: 30
L37: Navarra | M37: NAVARRA | N37: 31
L38: Ourense | M38: GALICIA | N38: 32
L39: Palencia | M39: CASTILLA-LEÓN | N39: 34
L40: Palmas, Las | M40: CANARIAS | N40: 35
L41: Pontevedra | M41: GALICIA | N41: 36
L42: Rioja, La | M42: LA RIOJA | N42: 26
L43: Salamanca | M43: CASTILLA-LEÓN | N43: 37
L44: Santa Cruz de Tenerife | M44: CANARIAS | N44: 38
L45: Segovia | M45: CASTILLA-LEÓN | N45: 40
L46: Sevilla | M46: ANDALUCÍA | N46: 41
L47: Soria | M47: CASTILLA-LEÓN | N47: 42
L48: Tarragona | M48: CATALUNYA | N48: 43
L49: Teruel | M49: ARAGÓN | N49: 44
L50: Toledo | M50: CASTILLA LA MANCHA | N50: 45
L51: Valencia/València | M51: COMUNIDAD VALENCIANA | N51: 46
L52: Valladolid | M52: CASTILLA-LEÓN | N52: 47
L53: Zamora | M53: CASTILLA-LEÓN | N53: 49
L54: Zaragoza | M54: ARAGÓN | N54: 50

Sheet Hoja Cálculos Térmicos (hidden)
B2: Temperatura ambiental en ºC | E2: =IFERROR((MIN('Datos (GENERALES) (IMP)'!H104:J104,'Datos (GENERALES) (IMP)'!H108:J108)),25) -> 0 | F2: ºC
B4: A) Superficies de tuberías (hasta 1000 mm de diámetro)
C7: Tª superficial de la instalación (ºC) | D7: Tª superficial media por tramo (ºC) | E7: Tª superficial media por tramo (K) | F7: Tª ambiental por tramo (ºC) | G7: Tª ambiental por tramo (K) | H7: Diametro promedio en mm | I7: Diametro promedio en m | J7: Superficie exterior tubería en m2 | K7: h convección | L7: h radiación | M7: h total= h convección + h radicación | N7: R conv_cilindrica | O7: Pérdidas W/metro lineal | P7: Pérdidas W/ m2 | Q7: Pérdidas kW/ m2
C8: 60<X≤100 | D8: 80 | E8: =D8+273 -> 353 | F8: =$E$2 -> 0 | G8: =F8+273 -> 273 | H8: ='COSTE NO AISLAM'!C10 -> 0 | I8: =H8/1000 -> 0 | J8: =PI()*I8 -> 0 | K8: =IFERROR(IF(I8^3*(D8-F8)<=10,SQRT(SQRT((D8-F8)/I8))*1.25,1.21*((D8-F8)^(1/3))),0) -> 0 | L8: =0.9*0.0000000567*(E8+G8)*(E8*E8+G8*G8) -> 6.3614196 | M8: =K8+L8 -> 6.3614196 | N8: =IFERROR((1/(PI()*I8*M8)),0) -> 0 | O8: =IFERROR(((D8-F8)/N8),0) -> 0 | P8: =IFERROR((O8/J8),0) -> 0 | Q8: =P8/1000 -> 0
C9: 100<X≤200 | D9: 150 | E9: =D9+273 -> 423 | F9: =$E$2 -> 0 | G9: =F9+273 -> 273 | H9: ='COSTE NO AISLAM'!C11 -> 0 | I9: =H9/1000 -> 0 | J9: 0 | K9: =IFERROR(IF(I9^3*(D9-F9)<=10,SQRT(SQRT((D9-F9)/I9))*1.25,1.21*((D9-F9)^(1/3))),0) -> 0 | L9: =0.9*0.0000000567*(E9+G9)*(E9*E9+G9*G9) -> 9.002037371 | M9: =K9+L9 -> 9.002037371 | N9: =IFERROR((1/(PI()*I9*M9)),0) -> 0 | O9: =IFERROR(((D9-F9)/N9),0) -> 0 | P9: =IFERROR((O9/J9),0) -> 0 | Q9: =P9/1000 -> 0
C10: 200<X≤300 | D10: 250 | E10: 523 | F10: 0 | G10: 273 | H10: ='COSTE NO AISLAM'!C12 -> 0 | I10: 0 | J10: 0 | K10: 0 | L10: 14.13807419 | M10: 14.13807419 | N10: 0 | O10: 0 | P10: 0 | Q10: 0
C11: 300<X≤400 | D11: 350 | E11: 623 | F11: 0 | G11: 273 | H11: ='COSTE NO AISLAM'!C13 -> 0 | I11: 0 | J11: 0 | K11: 0 | L11: 21.15405622 | M11: 21.15405622 | N11: 0 | O11: 0 | P11: 0 | Q11: 0
C12: 400<X≤500 | D12: 450 | E12: 723 | F12: 0 | G12: 273 | H12: ='COSTE NO AISLAM'!C14 -> 0 | I12: 0 | J12: 0 | K12: 0 | L12: 30.35616344 | M12: 30.35616344 | N12: 0 | O12: 0 | P12: 0 | Q12: 0
C13: 500<X≤600 | D13: 550 | E13: 823 | F13: 0 | G13: 273 | H13: ='COSTE NO AISLAM'!C15 -> 0 | I13: 0 | J13: 0 | K13: 0 | L13: 42.05057586 | M13: 42.05057586 | N13: 0 | O13: 0 | P13: 0 | Q13: 0
C14: 600<X≤650 | D14: 625 | E14: 898 | F14: 0 | G14: 273 | H14: ='COSTE NO AISLAM'!C16 -> 0 | I14: 0 | J14: =PI()*I14 -> 0 | K14: 0 | L14: 52.64114687 | M14: 52.64114687 | N14: 0 | O14: 0 | P14: 0 | Q14: 0
C16: NOTA 1: Cálculo según "Guía Técnica IDAE: Diseño y Cálculo del aislamiento térmico de conductos, aparatos y equipos
C17: NOTA 2: Se asume regimen laminar en el aire exterior
B19: B) Superficies planas y equipos (desde 1000 mm de diámetro)
C22: Tª superficial de la instalación (ºC) | D22: Tª superficial media por tramo (ºC) | E22: Tª superficial media por tramo (K) | F22: Tª ambiental por tramo (ºC) | G22: Tª ambiental por tramo (K) | H22: Pérdidas W/ m2 | I22: Pérdidas kW/ m2
C23: 60<X≤100 | D23: 80 | E23: =D23+273 -> 353 | F23: =$E$2 -> 0 | G23: =F23+273 -> 273 | H23: =POWER((D23-F23),1.25)*2.21+5.67*0.9*(POWER((E23/100),4)-POWER((G23/100),4)) -> 1037.668897 | I23: =H23/1000 -> 1.037668897
C24: 100<X≤200 | D24: 150 | E24: =D24+273 -> 423 | F24: =$E$2 -> 0 | G24: =F24+273 -> 273 | H24: 2510.434778 | I24: =H24/1000 -> 2.510434778
C25: 200<X≤300 | D25: 250 | E25: 523 | F25: 0 | G25: 273 | H25: 5731.453936 | I25: 5.731453936
C26: 300<X≤400 | D26: 350 | E26: 623 | F26: 0 | G26: 273 | H26: 10749.5452 | I26: 10.7495452
C27: 400<X≤500 | D27: 450 | E27: 723 | F27: 0 | G27: 273 | H27: 18240.72111 | I27: 18.24072111
C28: 500<X≤600 | D28: 550 | E28: 823 | F28: 0 | G28: 273 | H28: 29014.16068 | I28: 29.01416068
C29: 600<X≤650 | D29: 625 | E29: 898 | F29: 0 | G29: 273 | H29: 39806.96679 | I29: 39.80696679
C31: NOTA 1: Cálculo según fórmula de Fishendon y Saunders, asumiendo K= 2,21 y e=0,9
